Workbook

Sheet Gesamtrangliste
AD1: 2022-10-15 | AF1: 2022-12-17 | AH1: 2023-01-07 | AJ1: 2023-02-11 | AL1: 2023-04-29 | AN1: 2023-07-01 | AP1: 2023-08-26
H2: Breaks gesamt: | O2: =AE2+AG2+AI2+AK2+AM2+AO2+AQ2+AS2+AU2+AW2+AY2+BA2+BC2+BE2+BG2+BI2+BK2+BM2+BO2+BQ2 -> 122 | AD2: Breaks 30 + | AE2: 21 | AF2: Breaks 30+ | AG2: 20 | AH2: Breaks 30 + | AI2: 7 | AJ2: Breaks 30 + | AK2: 14 | AL2: Breaks 30 + | AM2: 20 | AN2: Breaks 30 + | AO2: 28 | AP2: Breaks 30 + | AQ2: 12 | AR2: Breaks 30 + | AT2: Breaks 30 + | AV2: Breaks 30 + | AX2: Breaks 30 + | AY2: 0 | AZ2: Breaks 30 + | BA2: 0 | BB2: Breaks 30 + | BC2: 0 | BD2: Breaks 30 + | BE2: 0 | BF2: Breaks 30 | BG2: 0 | BH2: Breaks 30 + | BI2: 0 | BJ2: Breaks 30 | BK2: 0 | BL2: Breaks 30 + | BM2: 0 | BN2: Breaks 30 | BO2: 0 | BP2: Breaks 30 | BQ2: 0
A3: Platz | B3: ↓↑ | C3: Pl.alt | D3: Spielername | E3: Total | F3: -1 | G3: St.-Erg. | H3: HB | I3: Quote % | J3: T1 | K3: T2 | L3: T3 | M3: T4 | N3: T5 | O3: T6 | P3: T7 | Q3: T8 | R3: T9 | S3: T10 | T3: T11 | U3: T12 | V3: T13 | W3: T14 | X3: T15 | Y3: T16 | Z3: T17 | AA3: T18 | AB3: T19 | AC3: T20 | AD3: Spieler | AE3: T 1 | AF3: Spieler | AG3: T 2 | AH3: Spieler | AI3: T 3 | AJ3: Spieler | AK3: T 4 | AL3: Spieler | AM3: T 5 | AN3: Spieler | AO3: T 6 | AP3: Spieler | AQ3: T 7 | AR3: Spieler | AS3: T 8 | AT3: Spieler | AU3: T 9 | AV3: Spieler | AW3: T10 | AX3: Spieler | AY3: T11 | AZ3: Spieler | BA3: T12 | BB3: Spieler | BC3: T13 | BD3: Spieler | BE3: T14 | BF3: Spieler | BG3: T15 | BH3: Spieler | BI3: T16 | BJ3: Spieler | BK3: T17 | BL3: Spieler | BM3: T18 | BN3: Spieler | BO3: T19 | BP3: Spieler | BQ3: T20
A4: 1 | B4: =IF(C4="","",C4-A4) -> 0 | C4: 1 | D4: Marco Weber | E4: =J4+K4+L4+M4+N4+O4+P4+Q4+R4+S4+T4+U4+V4+W4+X4+Y4+Z4 -> 1720.0232 | F4: =E4-G4 -> 1720.0232 | G4: =INDEX(J4:X4,MATCH(LARGE(J4:X4,COUNTIF(J4:X4,">="&0)),J4:X4,0)) -> 0 | H4: 84 | I4: 0.9069767442 | J4: =SUMIF($AD$4:$AD$59,$D4,$AE$4:$AE$59) -> 360.0052 | K4: =SUMIF($AF$4:$AF$43,$D4,$AG$4:$AG$43) -> 140.0062 | L4: =SUMIF($AH$4:$AH$43,$D4,$AI$4:$AI$43) -> 0 | M4: =SUMIF($AJ$4:$AJ$43,$D4,$AK$4:$AK$43) -> 410.0034 | N4: =SUMIF($AL$4:$AL$43,$D4,$AM$4:$AM$43) -> 270.0018 | O4: =SUMIF($AN$4:$AN$43,$D4,$AO$4:$AO$43) -> 365.0028 | P4: =SUMIF($AP$4:$AP$43,$D4,$AQ$4:$AQ$43) -> 175.0038 | Q4: =SUMIF($AR$4:$AR$43,$D4,$AS$4:$AS$43) -> 0 | R4: =SUMIF(AT$4:AT$43,$D4,AU$4:AU$43) -> 0 | S4: =SUMIF(AV$4:AV$43,$D4,AW$4:AW$43) -> 0 | T4: =SUMIF(AX$4:AX$43,$D4,AY$4:AY$43) -> 0 | U4: =SUMIF(AZ$4:AZ$43,$D4,BA$4:BA$43) -> 0 | V4: =SUMIF(BB$4:BB$43,$D4,BC$4:BC$43) -> 0 | W4: =SUMIF(BD$4:BD$43,$D4,BE$4:BE$43) -> 0 | X4: =SUMIF(BF$4:BF$43,$D4,BG$4:BG$43) -> 0 | Y4: =SUMIF(BH$4:BH$43,$D4,BI$4:BI$43) -> 0 | Z4: =SUMIF(BJ$4:BJ$43,$D4,BK$4:BK$43) -> 0 | AA4: =SUMIF(BL$4:BL$43,$D4,BM$4:BM$43) -> 0 | AB4: =SUMIF(BN$4:BN$43,$D4,BO$4:BO$43) -> 0 | AC4: =SUMIF(BP$4:BP$43,$D4,BQ$4:BQ$43) -> 0 | AD4: Felix Kirsten | AE4: 420.0066 | AF4: Ali Kirim | AG4: 310.004 | AH4: Salvador Valderrama | AI4: 315.0046 | AJ4: Marco Weber | AK4: 410.0034 | AL4: Luca Kaufmann | AM4: 420.0054 | AN4: Magnus Suttner | AO4: 420.0036 | AP4: Marec Stachly | AQ4: 410.0048
A5: 2 | B5: =IF(C5="","",C5-A5) -> 3 | C5: 5 | D5: Marec Stachly | E5: =J5+K5+L5+M5+N5+O5+P5+Q5+R5+S5+T5+U5+V5+W5+X5+Y5+Z5 -> 1480.0298 | F5: =E5-G5 -> 1480.0298 | G5: 0 | H5: 86 | I5: 0.6444444444 | J5: =SUMIF($AD$4:$AD$59,$D5,$AE$4:$AE$59) -> 125.0048 | K5: =SUMIF($AF$4:$AF$43,$D5,$AG$4:$AG$43) -> 185.0058 | L5: =SUMIF($AH$4:$AH$43,$D5,$AI$4:$AI$43) -> 125.006 | M5: =SUMIF($AJ$4:$AJ$43,$D5,$AK$4:$AK$43) -> 355.0042 | N5: =SUMIF($AL$4:$AL$43,$D5,$AM$4:$AM$43) -> 0 | O5: 280.0042 | P5: 410.0048 | Q5: 0 | R5: 0 | S5: =SUMIF(AV$4:AV$43,$D5,AW$4:AW$43) -> 0 | T5: 0 | U5: =SUMIF(AZ$4:AZ$43,$D5,BA$4:BA$43) -> 0 | V5: 0 | W5: =SUMIF(BD$4:BD$43,$D5,BE$4:BE$43) -> 0 | X5: =SUMIF(BF$4:BF$43,$D5,BG$4:BG$43) -> 0 | Y5: =SUMIF(BH$4:BH$43,$D5,BI$4:BI$43) -> 0 | Z5: =SUMIF(BJ$4:BJ$43,$D5,BK$4:BK$43) -> 0 | AA5: =SUMIF(BL$4:BL$43,$D5,BM$4:BM$43) -> 0 | AB5: =SUMIF(BN$4:BN$43,$D5,BO$4:BO$43) -> 0 | AC5: =SUMIF(BP$4:BP$43,$D5,BQ$4:BQ$43) -> 0 | AD5: Marco Weber | AE5: 360.0052 | AF5: Felix Kirsten | AG5: 270.007 | AH5: Magnus Suttner | AI5: 255.0064 | AJ5: Marec Stachly | AK5: 355.0042 | AL5: Timo Veit | AM5: 355.002 | AN5: Marco Weber | AO5: 365.0028 | AP5: Umair Khalid | AQ5: 345.0062
A6: 3 | B6: 1 | C6: 4 | D6: Joel Fandrei | E6: =J6+K6+L6+M6+N6+O6+P6+Q6+R6+S6+T6+U6+V6+W6+X6 -> 1460.0466 | G6: 0 | H6: 68 | I6: 0.7631578947 | J6: =SUMIF($AD$4:$AD$59,$D6,$AE$4:$AE$59) -> 280.0056 | K6: 190.0066 | L6: 135.0066 | M6: 270.007 | N6: 130.007 | O6: 180.007 | P6: 275.0068 | Q6: 0 | R6: 0 | S6: 0 | T6: 0 | U6: 0 | V6: 0 | W6: 0 | X6: 0 | Y6: 0 | Z6: 0 | AA6: 0 | AB6: 0 | AC6: 0 | AD6: Joel Fandrei | AE6: 280.0056 | AF6: Joel Fandrei | AG6: 190.0066 | AH6: Andreas Fandrei | AI6: 180.0078 | AJ6: Tobias Neumann | AK6: 275.0046 | AL6: Jakob Pfeiffer | AM6: 285.0044 | AN6: Marec Stachly | AO6: 280.0042 | AP6: Joel Fandrei | AQ6: 275.0068
A7: 4 | B7: -2 | C7: 2 | D7: Magnus Suttner | E7: =J7+K7+L7+M7+N7+O7+P7+Q7+R7+S7+T7+U7+V7+W7+X7+Y7+Z7 -> 1410.029 | F7: =E7-G7 -> 1410.029 | G7: 0 | H7: 58 | I7: 0.84 | J7: =SUMIF($AD$4:$AD$59,$D7,$AE$4:$AE$59) -> 280.0054 | K7: 150.0064 | L7: 255.0064 | M7: 0 | N7: 190.0028 | O7: 420.0036 | P7: 115.0044 | Q7: 0 | R7: 0 | S7: 0 | T7: 0 | U7: 0 | V7: 0 | W7: 0 | X7: 0 | Y7: 0 | Z7: 0 | AA7: 0 | AB7: 0 | AC7: 0 | AD7: Magnus Suttner | AE7: 280.0054 | AF7: Marec Stachly | AG7: 185.0058 | AH7: Fabio Simon | AI7: 175.0072 | AJ7: Joel Fandrei | AK7: 270.007 | AL7: Marco Weber | AM7: 270.0018 | AN7: Felix Kirsten | AO7: 275.0058 | AP7: Marcus Müller | AQ7: 270.0056
A8: 5 | B8: -2 | C8: 3 | D8: Felix Kirsten | E8: =J8+K8+L8+M8+N8+O8+P8+Q8+R8+S8+T8+U8+V8+W8+X8 -> 1280.03 | G8: 0 | H8: 92 | I8: 0.6486486486 | J8: =SUMIF($AD$4:$AD$59,$D8,$AE$4:$AE$59) -> 420.0066 | K8: 270.007 | L8: 0 | M8: 120.0056 | N8: 195.005 | O8: 275.0058 | P8: 0 | Q8: 0 | R8: 0 | S8: 0 | T8: 0 | U8: 0 | V8: 0 | W8: 0 | X8: 0 | Y8: 0 | Z8: 0 | AA8: 0 | AB8: 0 | AC8: 0 | AD8: Andreas Fandrei | AE8: 190.004 | AF8: Magnus Suttner | AG8: 150.0064 | AH8: Joel Fandrei | AI8: 135.0066 | AJ8: Salvador Valderrama | AK8: 180.0038 | AL8: Felix Kirsten | AM8: 195.005 | AN8: Tino Delling | AO8: 180.0072 | AP8: Andreas Fandrei | AQ8: 180.007
A9: 6 | B9: 1 | C9: 7 | D9: Tino Delling | E9: =J9+K9+L9+M9+N9+O9+P9+Q9+R9+S9+T9+U9+V9+W9+X9+Y9+Z9 -> 895.04 | F9: =E9-G9 -> 895.04 | G9: 0 | H9: 40 | I9: 0.5 | J9: =SUMIF($AD$4:$AD$59,$D9,$AE$4:$AE$59) -> 125.0024 | K9: 35.0038 | L9: 125.0042 | M9: 125.0076 | N9: 190.0072 | O9: 180.0072 | P9: 115.0076 | Q9: 0 | R9: 0 | S9: 0 | T9: 0 | U9: 0 | V9: 0 | W9: 0 | X9: 0 | Y9: 0 | Z9: 0 | AA9: 0 | AB9: 0 | AC9: 0 | AD9: Salvador Valderrama | AE9: 190.003 | AF9: Marco Weber | AG9: 140.0062 | AH9: Hans Bergmann | AI9: 125.0068 | AJ9: Florin Gheran | AK9: 175.0066 | AL9: Tino Delling | AM9: 190.0072 | AN9: Joel Fandrei | AO9: 180.007 | AP9: Ronny Rejke | AQ9: 180.0052
A10: 7 | B10: -1 | C10: 6 | D10: Salvador Valderrama | E10: =J10+K10+L10+M10+N10+O10+P10+Q10+R10+S10+T10+U10+V10+W10+X10 -> 895.0212 | G10: 0 | H10: 33 | I10: 0.3870967742 | J10: =SUMIF($AD$4:$AD$59,$D10,$AE$4:$AE$59) -> 190.003 | K10: 85.0044 | L10: 315.0046 | M10: 180.0038 | N10: 60.0022 | O10: 65.0032 | P10: 0 | Q10: 0 | R10: 0 | S10: 0 | T10: 0 | U10: 0 | V10: 0 | W10: 0 | X10: 0 | Y10: 0 | Z10: 0 | AA10: 0 | AB10: 0 | AC10: 0 | AD10: Thomas Kah | AE10: 190.0028 | AF10: David Gärtner | AG10: 135.0074 | AH10: Marec Stachly | AI10: 125.006 | AJ10: Thomas Kah | AK10: 175.006 | AL10: Magnus Suttner | AM10: 190.0028 | AN10: Abuzer Yekebasli | AO10: 180.0024 | AP10: Marco Weber | AQ10: 175.0038
A11: 8 | B11: 2 | C11: 10 | D11: Marko Straßburger | E11: =J11+K11+L11+M11+N11+O11+P11+Q11+R11+S11+T11+U11+V11+W11+X11+Y11+Z11 -> 685.031 | F11: =E11-G11 -> 685.031 | G11: 0 | H11: 31 | I11: 0.6666666667 | J11: =SUMIF($AD$4:$AD$59,$D11,$AE$4:$AE$59) -> 120.0044 | K11: 35.0054 | L11: 80.0058 | M11: 120.004 | N11: 55.003 | O11: 170.0038 | P11: 105.0046 | Q11: 0 | R11: 0 | S11: 0 | T11: 0 | U11: 0 | V11: 0 | W11: 0 | X11: 0 | Y11: 0 | Z11: 0 | AA11: 0 | AB11: 0 | AC11: 0 | AD11: Michael Kandler | AE11: 185.004 | AF11: Michael Seidel | AG11: 135.0048 | AH11: Tino Delling | AI11: 125.0042 | AJ11: Paul Jeroch | AK11: 170.0062 | AL11: Moritz Thomas | AM11: 185.0024 | AN11: Marko Straßburger | AO11: 170.0038 | AP11: Umer Muhammad | AQ11: 170.0058
A12: 9 | B12: 9 | C12: 18 | D12: Marcus Müller | E12: =J12+K12+L12+M12+N12+O12+P12+Q12+R12+S12+T12+U12+V12+W12+X12 -> 670.0274 | G12: 0 | H12: 45 | I12: 0.5454545455 | J12: =SUMIF($AD$4:$AD$59,$D12,$AE$4:$AE$59) -> 130.005 | K12: 80.006 | L12: 70.0062 | M12: 0 | N12: 120.0046 | O12: 0 | P12: 270.0056 | Q12: 0 | R12: 0 | S12: 0 | T12: 0 | U12: 0 | V12: 0 | W12: 0 | X12: 0 | Y12: 0 | Z12: 0 | AA12: 0 | AB12: 0 | AC12: 0 | AD12: Behnam Ahmadi | AE12: 130.0074 | AF12: Fabio Simon | AG12: 85.0072 | AH12: Michael Kandler | AI12: 85.0052 | AJ12: Tino Delling | AK12: 125.0076 | AL12: Joel Fandrei | AM12: 130.007 | AN12: Christian Hirth | AO12: 120.0066 | AP12: Roy Rameez Ahmed | AQ12: 120.008
A13: 10 | B13: 2 | C13: 12 | D13: Andreas Fandrei | E13: =J13+K13+L13+M13+N13+O13+P13+Q13+R13+S13+T13+U13+V13+W13+X13+Y13+Z13 -> 645.0338 | F13: =E13-G13 -> 645.0338 | G13: 0 | H13: 36 | I13: 0.380952381 | J13: =SUMIF($AD$4:$AD$59,$D13,$AE$4:$AE$59) -> 190.004 | K13: 40.0078 | L13: 180.0078 | M13: 55.0072 | N13: 0 | O13: 0 | P13: 180.007 | Q13: 0 | R13: 0 | S13: 0 | T13: 0 | U13: 0 | V13: 0 | W13: 0 | X13: 0 | Y13: 0 | Z13: 0 | AA13: 0 | AB13: 0 | AC13: 0 | AD13: Marcus Müller | AE13: 130.005 | AF13: Salvador Valderrama | AG13: 85.0044 | AH13: David Gärtner | AI13: 80.0074 | AJ13: Lukas Marmucki | AK13: 125.005 | AL13: Carl Rosenberger | AM13: 130.0034 | AN13: Ali Kirim | AO13: 120.006 | AP13: Rayumer Faarooq | AQ13: 120.0072
A14: 11 | B14: -3 | C14: 8 | D14: Ali Kirim | E14: =J14+K14+L14+M14+N14+O14+P14+Q14+R14+S14+T14+U14+V14+W14+X14+Y14+Z14 -> 620.0192 | F14: =E14-G14 -> 620.0192 | G14: 0 | I14: 0.4 | J14: =SUMIF($AD$4:$AD$59,$D14,$AE$4:$AE$59) -> 0 | K14: 310.004 | L14: 70.004 | M14: 0 | N14: 120.0052 | O14: 120.006 | P14: 0 | Q14: 0 | R14: 0 | S14: 0 | T14: 0 | U14: 0 | V14: 0 | W14: 0 | X14: 0 | Y14: 0 | Z14: 0 | AA14: 0 | AB14: 0 | AC14: 0 | AD14: David Gärtner | AE14: 125.007 | AF14: Marcus Müller | AG14: 80.006 | AH14: Marko Straßburger | AI14: 80.0058 | AJ14: Felix Kirsten | AK14: 120.0056 | AL14: Christian Hirth | AM14: 125.0062 | AN14: Michael Kandler | AO14: 115.0062 | AP14: Tino Delling | AQ14: 115.0076
A15: 12 | B15: -3 | C15: 9 | D15: Michael Kandler | E15: =J15+K15+L15+M15+N15+O15+P15+Q15+R15+S15+T15+U15+V15+W15+X15+Y15+Z15 -> 600.0318 | G15: 0 | H15: 48 | I15: 0.45 | J15: =SUMIF($AD$4:$AD$59,$D15,$AE$4:$AE$59) -> 185.004 | K15: 40.005 | L15: 85.0052 | M15: 110.0058 | N15: 65.0056 | O15: 115.0062 | P15: 0 | Q15: 0 | R15: 0 | S15: 0 | T15: 0 | U15: 0 | V15: 0 | W15: 0 | X15: 0 | Y15: 0 | Z15: 0 | AA15: 0 | AB15: 0 | AC15: 0 | AD15: Marec Stachly | AE15: 125.0048 | AF15: Paul Jeroch | AG15: 80.0046 | AH15: Tom Müller | AI15: 75.004 | AJ15: Matthias Kosniowski | AK15: 120.0054 | AL15: Ali Kirim | AM15: 120.0052 | AN15: Christian Schmid | AO15: 115.005 | AP15: Paul Jeroch | AQ15: 115.0064
A16: 13 | B16: 2 | C16: 15 | D16: Paul Jeroch | E16: =J16+K16+L16+M16+N16+O16+P16+Q16+R16+S16+T16+U16+V16+W16+X16 -> 545.0314 | G16: 0 | I16: 0.3636363636 | J16: =SUMIF($AD$4:$AD$59,$D16,$AE$4:$AE$59) -> 60.0034 | K16: 80.0046 | L16: 60.0048 | M16: 170.0062 | N16: 60.006 | O16: 0 | P16: 115.0064 | Q16: 0 | R16: 0 | S16: 0 | T16: 0 | U16: 0 | V16: 0 | W16: 0 | X16: 0 | Y16: 0 | Z16: 0 | AA16: 0 | AB16: 0 | AC16: 0 | AD16: Tino Delling | AE16: 125.0024 | AF16: Hans Bergmann | AG16: 45.0068 | AH16: Marcus Müller | AI16: 70.0062 | AJ16: Marko Straßburger | AK16: 120.004 | AL16: Ulrich Löffel | AM16: 120.0048 | AN16: Hans Bergmann | AO16: 110.0076 | AP16: Oussama Ouhsain | AQ16: 115.0054
A17: 14 | B17: -3 | C17: 11 | D17: Timo Veit | E17: =J17+K17+L17+M17+N17+O17+P17+Q17+R17+S17+T17+U17+V17+W17+X17+Y17+Z17 -> 520.0112 | F17: =E17-G17 -> 520.0112 | G17: 0 | H17: 34 | I17: 0.6153846154 | J17: =SUMIF($AD$4:$AD$59,$D17,$AE$4:$AE$59) -> 55.0026 | K17: 0 | L17: 0 | M17: 50.0036 | N17: 355.002 | O17: 60.003 | P17: 0 | Q17: 0 | R17: 0 | S17: 0 | T17: 0 | U17: 0 | V17: 0 | W17: 0 | X17: 0 | Y17: 0 | Z17: 0 | AA17: 0 | AB17: 0 | AC17: 0 | AD17: Gustav Hollnagel | AE17: 120.0062 | AF17: Andreas Fandrei | AG17: 40.0078 | AH17: Ali Kirim | AI17: 70.004 | AJ17: David Gärtner | AK17: 110.0068 | AL17: Marcus Müller | AM17: 120.0046 | AN17: Ann-Cathrin Grüner | AO17: 110.0068 | AP17: Magnus Suttner | AQ17: 115.0044
A18: 15 | B18: -2 | C18: 13 | D18: Thomas Kah | E18: =J18+K18+L18+M18+N18+O18+P18+Q18+R18+S18+T18+U18+V18+W18+X18 -> 455.019 | G18: 0 | H18: 43 | I18: 0.5555555556 | J18: =SUMIF($AD$4:$AD$59,$D18,$AE$4:$AE$59) -> 190.0028 | K18: 0 | L18: 30.0044 | M18: 175.006 | N18: 60.0058 | O18: 0 | P18: 0 | Q18: 0 | R18: 0 | S18: 0 | T18: 0 | U18: 0 | V18: 0 | W18: 0 | X18: 0 | Y18: 0 | Z18: 0 | AA18: 0 | AB18: 0 | AC18: 0 | AD18: Holger Hänel | AE18: 120.0058 | AF18: Mario Gehrke | AG18: 40.0056 | AH18: Ann-Cathrin Grüner | AI18: 60.0076 | AJ18: Michael Kandler | AK18: 110.0058 | AL18: Thomas Rath | AM18: 120.004 | AN18: Ulrich Löffel | AO18: 110.0054 | AP18: Faiz Elham | AQ18: 110.0074
A19: 16 | B19: -2 | C19: 14 | D19: David Gärtner | E19: =J19+K19+L19+M19+N19+O19+P19+Q19+R19+S19+T19+U19+V19+W19+X19+Y19+Z19 -> 450.0286 | F19: =E19-G19 -> 450.0286 | G19: 0 | H19: 61 | I19: 0.6666666667 | J19: =SUMIF($AD$4:$AD$59,$D19,$AE$4:$AE$59) -> 125.007 | K19: 135.0074 | L19: 80.0074 | M19: 110.0068 | N19: 0 | O19: 0 | P19: 0 | Q19: 0 | R19: 0 | S19: 0 | T19: 0 | U19: 0 | V19: 0 | W19: 0 | X19: 0 | Y19: 0 | Z19: 0 | AA19: 0 | AB19: 0 | AC19: 0 | AD19: Marko Straßburger | AE19: 120.0044 | AF19: Michael Kandler | AG19: 40.005 | AH19: Paul Jeroch | AI19: 60.0048 | AJ19: Dennis Kruse | AK19: 110.0052 | AL19: Thomas Fritz | AM19: 115.0068 | AN19: Andy Swennen | AO19: 110.0034 | AP19: Marko Straßburger | AQ19: 105.0046
A20: 17 | B20: -1 | C20: 16 | D20: Luca Kaufmann | E20: =J20+K20+L20+M20+N20+O20+P20+Q20+R20+S20+T20+U20+V20+W20+X20 -> 420.0054 | G20: 0 | H20: 60 | I20: 0.75 | J20: =SUMIF($AD$4:$AD$59,$D20,$AE$4:$AE$59) -> 0 | K20: 0 | L20: 0 | M20: 0 | N20: 420.0054 | O20: 0 | P20: 0 | Q20: 0 | R20: 0 | S20: 0 | T20: 0 | U20: 0 | V20: 0 | W20: 0 | X20: 0 | Y20: 0 | Z20: 0 | AA20: 0 | AB20: 0 | AC20: 0 | AD20: Christian Hirth | AE20: 70.0072 | AF20: Sebastian Lux | AG20: 40.0042 | AH20: Max Weber | AI20: 45.0054 | AJ20: Andreas Fandrei | AK20: 55.0072 | AL20: Ann-Cathrin Grüner | AM20: 65.0064 | AN20: Michael Seidel | AO20: 65.0046 | AP20: Dave Brachmanski | AQ20: 60.0078
A21: 18 | B21: -1 | C21: 17 | D21: Hans Bergmann | E21: =J21+K21+L21+M21+N21+O21+P21+Q21+R21+S21+T21+U21+V21+W21+X21+Y21+Z21 -> 405.0348 | F21: =E21-G21 -> 405.0348 | G21: 0 | I21: 0.2727272727 | J21: =SUMIF($AD$4:$AD$59,$D21,$AE$4:$AE$59) -> 65.006 | K21: 45.0068 | L21: 125.0068 | M21: 0 | N21: 60.0076 | O21: 110.0076 | P21: 0 | Q21: 0 | R21: 0 | S21: 0 | T21: 0 | U21: 0 | V21: 0 | W21: 0 | X21: 0 | Y21: 0 | Z21: 0 | AA21: 0 | AB21: 0 | AC21: 0 | AD21: Max Weber | AE21: 70.0042 | AF21: Ann-Cathrin Grüner | AG21: 35.0076 | AH21: Michael Seidel | AI21: 40.005 | AJ21: Rene Isermann | AK21: 55.0064 | AL21: Michael Kandler | AM21: 65.0056 | AN21: Salvador Valderrama | AO21: 65.0032 | AP21: Ulrich Löffel | AQ21: 55.006
A22: 19 | B22: 0 | C22: 19 | D22: Fabio Simon | E22: =J22+K22+L22+M22+N22+O22+P22+Q22+R22+S22+T22+U22+V22+W22+X22 -> 380.0256 | G22: 0 | H22: 31 | I22: 0.5454545455 | J22: =SUMIF($AD$4:$AD$59,$D22,$AE$4:$AE$59) -> 60.0068 | K22: 85.0072 | L22: 175.0072 | M22: 0 | N22: 0 | O22: 60.0044 | P22: 0 | Q22: 0 | R22: 0 | S22: 0 | T22: 0 | U22: 0 | V22: 0 | W22: 0 | X22: 0 | Y22: 0 | Z22: 0 | AA22: 0 | AB22: 0 | AC22: 0 | AD22: Michael Seidel | AE22: 70.0038 | AF22: Marko Straßburger | AG22: 35.0054 | AH22: Frank Brömel | AI22: 30.007 | AJ22: Stephan Rzepka | AK22: 55.0044 | AL22: Hans Bergmann | AM22: 60.0076 | AN22: Max Weber | AO22: 65.0026 | AP22: Ann-Cathrin Grüner | AQ22: 50.0066
A23: 20 | D23: Umair Khalid | E23: =J23+K23+L23+M23+N23+O23+P23+Q23+R23+S23+T23+U23+V23+W23+X23 -> 345.0062 | G23: 0 | I23: 0.5555555556 | J23: =SUMIF($AD$4:$AD$59,$D23,$AE$4:$AE$59) -> 0 | K23: 0 | L23: 0 | M23: 0 | N23: 0 | O23: 0 | P23: 345.0062 | Q23: 0 | R23: 0 | S23: 0 | T23: 0 | U23: 0 | V23: 0 | W23: 0 | X23: 0 | Y23: 0 | Z23: 0 | AA23: 0 | AB23: 0 | AC23: 0 | AD23: Andreas Hollin | AE23: 65.0078 | AF23: Matthias Bauer | AG23: 35.0052 | AH23: Mats Weber | AI23: 30.0056 | AJ23: Frank Brömel | AK23: 50.0078 | AL23: Mario Gerke | AM23: 60.0066 | AN23: Frank Brömel | AO23: 60.0074 | AP23: Johannes Schranz | AQ23: 50.005
A24: 21 | B24: 3 | C24: 24 | D24: Ann-Cathrin Grüner | E24: =J24+K24+L24+M24+N24+O24+P24+Q24+R24+S24+T24+U24+V24+W24+X24 -> 320.035 | G24: 0 | I24: 0.4444444444 | J24: =SUMIF($AD$4:$AD$59,$D24,$AE$4:$AE$59) -> 0 | K24: 35.0076 | L24: 60.0076 | M24: 0 | N24: 65.0064 | O24: 110.0068 | P24: 50.0066 | Q24: 0 | R24: 0 | S24: 0 | T24: 0 | U24: 0 | V24: 0 | W24: 0 | X24: 0 | Y24: 0 | Z24: 0 | AA24: 0 | AB24: 0 | AC24: 0 | AD24: Hans Bergmann | AE24: 65.006 | AF24: Thomas Fritz | AG24: 35.004 | AH24: Thomas Kah | AI24: 30.0044 | AJ24: Faiz Elham | AK24: 50.0074 | AL24: Paul Jeroch | AM24: 60.006 | AN24: Christopher Jaritz | AO24: 60.0064 | AP24: Moritz Thomas | AQ24: 50.0042
A25: 22 | B25: -2 | C25: 20 | D25: Christian Hirth | E25: =J25+K25+L25+M25+N25+O25+P25+Q25+R25+S25+T25+U25+V25+W25+X25 -> 315.02 | G25: 0 | I25: 0.1666666667 | J25: =SUMIF($AD$4:$AD$59,$D25,$AE$4:$AE$59) -> 70.0072 | K25: 0 | L25: 0 | M25: 0 | N25: 125.0062 | O25: 120.0066 | P25: 0 | Q25: 0 | R25: 0 | S25: 0 | T25: 0 | U25: 0 | V25: 0 | W25: 0 | X25: 0 | Y25: 0 | Z25: 0 | AA25: 0 | AB25: 0 | AC25: 0 | AD25: Umer Muhammad | AE25: 65.0036 | AF25: Tino Delling | AG25: 35.0038 | AH25: Volker Stahl | AI25: 30.0038 | AJ25: Sergej Martynov | AK25: 50.0048 | AL25: Thomas Kah | AM25: 60.0058 | AN25: Hermann Kraus | AO25: 60.0056 | AP25: Adam Urban | AQ25: 50.004
A26: 23 | B26: -2 | C26: 21 | D26: Michael Seidel | E26: =J26+K26+L26+M26+N26+O26+P26+Q26+R26+S26+T26+U26+V26+W26+X26+Y26+Z26 -> 310.0182 | F26: =E26-G26 -> 310.0182 | G26: 0 | H26: 30 | I26: 0.4285714286 | J26: =SUMIF($AD$4:$AD$59,$D26,$AE$4:$AE$59) -> 70.0038 | K26: 135.0048 | L26: 40.005 | M26: 0 | N26: 0 | O26: 65.0046 | P26: 0 | Q26: 0 | R26: 0 | S26: 0 | T26: 0 | U26: 0 | V26: 0 | W26: 0 | X26: 0 | Y26: 0 | Z26: 0 | AA26: 0 | AB26: 0 | AC26: 0 | AD26: Andy Swennen | AE26: 60.0076 | AF26: Volker Stahl | AG26: 35.0036 | AJ26: Dave Brachmanski | AK26: 50.004 | AL26: Andy Swennen | AM26: 60.0026 | AN26: Jürgen Scharl | AO26: 60.0052
A27: 24 | B27: 5 | C27: 29 | D27: Ulrich Löffel | E27: =J27+K27+L27+M27+N27+O27+P27+Q27+R27+S27+T27+U27+V27+W27+X27+Y27+Z27 -> 285.0162 | F27: =E27-G27 -> 285.0162 | G27: 0 | I27: 0.5 | J27: =SUMIF($AD$4:$AD$59,$D27,$AE$4:$AE$59) -> 0 | K27: =SUMIF($AF$4:$AF$43,$D27,$AG$4:$AG$43) -> 0 | L27: =SUMIF($AH$4:$AH$43,$D27,$AI$4:$AI$43) -> 0 | M27: =SUMIF($AJ$4:$AJ$43,$D27,$AK$4:$AK$43) -> 0 | N27: =SUMIF($AL$4:$AL$43,$D27,$AM$4:$AM$43) -> 120.0048 | O27: 110.0054 | P27: =SUMIF($AP$4:$AP$43,$D27,$AQ$4:$AQ$43) -> 55.006 | Q27: =SUMIF($AR$4:$AR$43,$D27,$AS$4:$AS$43) -> 0 | R27: =SUMIF(AT$4:AT$43,$D27,AU$4:AU$43) -> 0 | S27: =SUMIF(AV$4:AV$43,$D27,AW$4:AW$43) -> 0 | T27: 0 | U27: =SUMIF(AZ$4:AZ$43,$D27,BA$4:BA$43) -> 0 | V27: =SUMIF(BB$4:BB$43,$D27,BC$4:BC$43) -> 0 | W27: 0 | X27: 0 | Y27: 0 | Z27: 0 | AA27: 0 | AB27: 0 | AC27: 0 | AD27: Fabio Simon | AE27: 60.0068 | AJ27: Timo Veit | AK27: 50.0036 | AL27: Salvador Valderrama | AM27: 60.0022 | AN27: Fabio Simon | AO27: 60.0044
A28: 25 | B28: -3 | C28: 22 | D28: Jakob Pfeiffer | E28: =J28+K28+L28+M28+N28+O28+P28+Q28+R28+S28+T28+U28+V28+W28+X28 -> 285.0044 | G28: 0 | H28: 35 | I28: 0.25 | J28: =SUMIF($AD$4:$AD$59,$D28,$AE$4:$AE$59) -> 0 | K28: =SUMIF($AF$4:$AF$43,$D28,$AG$4:$AG$43) -> 0 | L28: =SUMIF($AH$4:$AH$43,$D28,$AI$4:$AI$43) -> 0 | M28: =SUMIF($AJ$4:$AJ$43,$D28,$AK$4:$AK$43) -> 0 | N28: =SUMIF($AL$4:$AL$43,$D28,$AM$4:$AM$43) -> 285.0044 | O28: 0 | P28: =SUMIF($AP$4:$AP$43,$D28,$AQ$4:$AQ$43) -> 0 | Q28: =SUMIF($AR$4:$AR$43,$D28,$AS$4:$AS$43) -> 0 | R28: =SUMIF(AT$4:AT$43,$D28,AU$4:AU$43) -> 0 | S28: =SUMIF(AV$4:AV$43,$D28,AW$4:AW$43) -> 0 | T28: 0 | U28: =SUMIF(AZ$4:AZ$43,$D28,BA$4:BA$43) -> 0 | V28: =SUMIF(BB$4:BB$43,$D28,BC$4:BC$43) -> 0 | W28: 0 | X28: 0 | Y28: 0 | Z28: 0 | AA28: 0 | AB28: 0 | AC28: 0 | AD28: Paul Jeroch | AE28: 60.0034 | AL28: Matthias Bauer | AM28: 55.0078 | AN28: Behnam Ahmadi | AO28: 60.004
A29: 26 | B29: -3 | C29: 23 | D29: Tobias Neumann | E29: =J29+K29+L29+M29+N29+O29+P29+Q29+R29+S29+T29+U29+V29+W29+X29 -> 275.0046 | G29: 0 | I29: 0.6 | J29: =SUMIF($AD$4:$AD$59,$D29,$AE$4:$AE$59) -> 0 | K29: 0 | L29: 0 | M29: 275.0046 | N29: 0 | O29: 0 | P29: 0 | Q29: 0 | R29: 0 | S29: 0 | T29: 0 | U29: 0 | V29: 0 | W29: 0 | X29: 0 | Y29: 0 | Z29: 0 | AA29: 0 | AB29: 0 | AC29: 0 | AD29: Volker Stahl | AE29: 60.0022 | AL29: Frank Rapior | AM29: 55.0042 | AN29: Timo Veit | AO29: 60.003
A30: 27 | B30: -2 | C30: 25 | D30: Frank Brömel | E30: =J30+K30+L30+M30+N30+O30+P30+Q30+R30+S30+T30+U30+V30+W30+X30+Y30+Z30 -> 245.036 | F30: =E30-G30 -> 245.036 | G30: 0 | I30: 0.3333333333 | J30: =SUMIF($AD$4:$AD$59,$D30,$AE$4:$AE$59) -> 55.0064 | K30: 0 | L30: 30.007 | M30: 50.0078 | N30: 50.0074 | O30: 60.0074 | P30: 0 | Q30: 0 | R30: 0 | S30: 0 | T30: 0 | U30: 0 | V30: 0 | W30: 0 | X30: 0 | Y30: 0 | Z30: 0 | AA30: 0 | AB30: 0 | AC30: 0 | AD30: Frank Brömel | AE30: 55.0064 | AL30: Behnam Ahmadi | AM30: 55.004 | AN30: Matthias Bauer | AO30: 50.0078
A31: 28 | B31: -2 | C31: 26 | D31: Behnam Ahmadi | E31: =J31+K31+L31+M31+N31+O31+P31+Q31+R31+S31+T31+U31+V31+W31+X31 -> 245.0154 | G31: 0 | H31: 40 | I31: 0.2 | J31: =SUMIF($AD$4:$AD$59,$D31,$AE$4:$AE$59) -> 130.0074 | K31: 0 | L31: 0 | M31: 0 | N31: 55.004 | O31: 60.004 | P31: 0 | Q31: 0 | R31: 0 | S31: 0 | T31: 0 | U31: 0 | V31: 0 | W31: 0 | X31: 0 | Y31: 0 | Z31: 0 | AA31: 0 | AB31: 0 | AC31: 0 | AD31: Timo Veit | AE31: 55.0026 | AL31: Volker Stahl | AM31: 55.0032 | AN31: Dieter Schmidt | AO31: 50.0048
A32: 29 | B32: 17 | C32: 46 | D32: Umer Muhammad | E32: =J32+K32+L32+M32+N32+O32+P32+Q32+R32+S32+T32+U32+V32+W32+X32 -> 235.0094 | G32: 0 | I32: 0.3333333333 | J32: =SUMIF($AD$4:$AD$59,$D32,$AE$4:$AE$59) -> 65.0036 | K32: 0 | L32: 0 | M32: 0 | N32: 0 | O32: 0 | P32: 170.0058 | Q32: 0 | R32: 0 | S32: 0 | T32: 0 | U32: 0 | V32: 0 | W32: 0 | X32: 0 | Y32: 0 | Z32: 0 | AA32: 0 | AB32: 0 | AC32: 0 | AD32: Mario Beetz | AE32: 50.01154444 | AL32: Marko Straßburger | AM32: 55.003 | AN32: Volker Stahl | AO32: 50.004
A33: 30 | B33: 0 | C33: 30 | D33: Moritz Thomas | E33: =J33+K33+L33+M33+N33+O33+P33+Q33+R33+S33+T33+U33+V33+W33+X33+Y33+Z33 -> 235.0066 | F33: =E33-G33 -> 235.0066 | G33: 0 | I33: 0.3333333333 | J33: =SUMIF($AD$4:$AD$59,$D33,$AE$4:$AE$59) -> 0 | K33: 0 | L33: 0 | M33: 0 | N33: 185.0024 | O33: 0 | P33: 50.0042 | Q33: 0 | R33: 0 | S33: 0 | T33: 0 | U33: 0 | V33: 0 | W33: 0 | X33: 0 | Y33: 0 | Z33: 0 | AA33: 0 | AB33: 0 | AC33: 0 | AD33: Ronny Rejke | AE33: 50.0032 | AL33: Frank Brömel | AM33: 50.0074
A34: 31 | B34: -4 | C34: 27 | D34: Volker Stahl | E34: =J34+K34+L34+M34+N34+O34+P34+Q34+R34+S34+T34+U34+V34+W34+X34+Y34+Z34 -> 230.0168 | G34: 0 | I34: 0.5 | J34: =SUMIF($AD$4:$AD$59,$D34,$AE$4:$AE$59) -> 60.0022 | K34: 35.0036 | L34: 30.0038 | M34: 0 | N34: 55.0032 | O34: 50.004 | P34: 0 | Q34: 0 | R34: 0 | S34: 0 | T34: 0 | U34: 0 | V34: 0 | W34: 0 | X34: 0 | Y34: 0 | Z34: 0 | AA34: 0 | AB34: 0 | AC34: 0 | AL34: Jürgen Reinel | AM34: 50.0038
A35: 32 | B35: -4 | C35: 28 | D35: Andy Swennen | E35: =J35+K35+L35+M35+N35+O35+P35+Q35+R35+S35+T35+U35+V35+W35+X35+Y35+Z35 -> 230.0136 | F35: =E35-G35 -> 230.0136 | G35: 0 | I35: 0.5 | J35: =SUMIF($AD$4:$AD$59,$D35,$AE$4:$AE$59) -> 60.0076 | K35: 0 | L35: 0 | M35: 0 | N35: 60.0026 | O35: 110.0034 | P35: 0 | Q35: 0 | R35: 0 | S35: 0 | T35: 0 | U35: 0 | V35: 0 | W35: 0 | X35: 0 | Y35: 0 | Z35: 0 | AA35: 0 | AB35: 0 | AC35: 0 | AL35: Marco Rentsch | AM35: 50.0036
A36: 33 | B36: 28 | C36: 61 | D36: Ronny Rejke | E36: =J36+K36+L36+M36+N36+O36+P36+Q36+R36+S36+T36+U36+V36+W36+X36+Y36+Z36 -> 230.0084 | F36: =E36-G36 -> 230.0084 | G36: =INDEX(J36:X36,MATCH(LARGE(J36:X36,COUNTIF(J36:X36,">="&0)),J36:X36,0)) -> 0 | H36: 40 | I36: 0 | J36: =SUMIF($AD$4:$AD$59,$D36,$AE$4:$AE$59) -> 50.0032 | K36: 0 | L36: 0 | M36: 0 | N36: 0 | O36: =SUMIF($AN$4:$AN$43,$D36,$AO$4:$AO$43) -> 0 | P36: 180.0052 | Q36: 0 | R36: 0 | S36: 0 | T36: =SUMIF(AX$4:AX$43,$D36,AY$4:AY$43) -> 0 | U36: 0 | V36: 0 | W36: 0 | X36: 0 | Y36: 0 | Z36: 0 | AA36: 0 | AB36: 0 | AC36: 0
A37: 34 | B37: -3 | C37: 31 | D37: Max Weber | E37: =J37+K37+L37+M37+N37+O37+P37+Q37+R37+S37+T37+U37+V37+W37+X37 -> 180.0122 | G37: 0 | H37: 38 | I37: 0 | J37: =SUMIF($AD$4:$AD$59,$D37,$AE$4:$AE$59) -> 70.0042 | K37: 0 | L37: 45.0054 | M37: 0 | N37: 0 | O37: 65.0026 | P37: 0 | Q37: 0 | R37: 0 | S37: 0 | T37: 0 | U37: 0 | V37: 0 | W37: 0 | X37: 0 | Y37: 0 | Z37: 0 | AA37: 0 | AB37: 0 | AC37: 0
A38: 35 | B38: -3 | C38: 32 | D38: Abuzer Yekebasli | E38: =J38+K38+L38+M38+N38+O38+P38+Q38+R38+S38+T38+U38+V38+W38+X38 -> 180.0024 | G38: 0 | I38: 0 | J38: =SUMIF($AD$4:$AD$59,$D38,$AE$4:$AE$59) -> 0 | K38: 0 | L38: 0 | M38: 0 | N38: 0 | O38: 180.0024 | P38: 0 | Q38: 0 | R38: 0 | S38: 0 | T38: 0 | U38: 0 | V38: 0 | W38: 0 | X38: 0 | Y38: 0 | Z38: 0 | AA38: 0 | AB38: 0 | AC38: 0
A39: 36 | B39: -3 | C39: 33 | D39: Florin Gheran | E39: =J39+K39+L39+M39+N39+O39+P39+Q39+R39+S39+T39+U39+V39+W39+X39 -> 175.0066 | G39: 0 | I39: 0 | J39: =SUMIF($AD$4:$AD$59,$D39,$AE$4:$AE$59) -> 0 | K39: 0 | L39: 0 | M39: 175.0066 | N39: 0 | O39: 0 | P39: 0 | Q39: 0 | R39: 0 | S39: 0 | T39: 0 | U39: 0 | V39: 0 | W39: 0 | X39: 0 | Y39: 0 | Z39: 0 | AA39: 0 | AB39: 0 | AC39: 0
A40: 37 | B40: 18 | C40: 55 | D40: Faiz Elham | E40: =J40+K40+L40+M40+N40+O40+P40+Q40+R40+S40+T40+U40+V40+W40+X40 -> 160.0148 | G40: 0 | I40: 0.3333333333 | J40: =SUMIF($AD$4:$AD$59,$D40,$AE$4:$AE$59) -> 0 | K40: 0 | L40: 0 | M40: 50.0074 | N40: 0 | O40: 0 | P40: 110.0074 | Q40: 0 | R40: 0 | S40: 0 | T40: 0 | U40: 0 | V40: 0 | W40: 0 | X40: 0 | Y40: 0 | Z40: 0 | AA40: 0 | AB40: 0 | AC40: 0
A41: 38 | B41: -4 | C41: 34 | D41: Thomas Fritz | E41: =J41+K41+L41+M41+N41+O41+P41+Q41+R41+S41+T41+U41+V41+W41+X41+Y41+Z41 -> 150.0108 | F41: =E41-G41 -> 150.0108 | G41: 0 | I41: 0.3333333333 | J41: =SUMIF($AD$4:$AD$59,$D41,$AE$4:$AE$59) -> 0 | K41: 35.004 | L41: 0 | M41: 0 | N41: 115.0068 | O41: 0 | P41: 0 | Q41: 0 | R41: 0 | S41: 0 | T41: 0 | U41: 0 | V41: 0 | W41: 0 | X41: 0 | Y41: 0 | Z41: 0 | AA41: 0 | AB41: 0 | AC41: 0
A42: 39 | B42: -4 | C42: 35 | D42: Matthias Bauer | E42: =J42+K42+L42+M42+N42+O42+P42+Q42+R42+S42+T42+U42+V42+W42+X42+Y42+Z42 -> 140.0208 | F42: =E42-G42 -> 140.0208 | G42: 0 | I42: 0.3333333333 | J42: =SUMIF($AD$4:$AD$59,$D42,$AE$4:$AE$59) -> 0 | K42: 35.0052 | L42: 0 | M42: 0 | N42: 55.0078 | O42: 50.0078 | P42: 0 | Q42: 0 | R42: 0 | S42: 0 | T42: 0 | U42: 0 | V42: 0 | W42: 0 | X42: 0 | Y42: 0 | Z42: 0 | AA42: 0 | AB42: 0 | AC42: 0
A43: 40 | B43: -4 | C43: 36 | D43: Carl Rosenberger | E43: =J43+K43+L43+M43+N43+O43+P43+Q43+R43+S43+T43+U43+V43+W43+X43 -> 130.0034 | G43: 0 | I43: 0.25 | J43: =SUMIF($AD$4:$AD$59,$D43,$AE$4:$AE$59) -> 0 | K43: 0 | L43: 0 | M43: 0 | N43: 130.0034 | O43: 0 | P43: 0 | Q43: 0 | R43: 0 | S43: 0 | T43: 0 | U43: 0 | V43: 0 | W43: 0 | X43: 0 | Y43: 0 | Z43: 0 | AA43: 0 | AB43: 0 | AC43: 0
A44: 41 | B44: -4 | C44: 37 | D44: Lukas Marmucki | E44: =J44+K44+L44+M44+N44+O44+P44+Q44+R44+S44+T44+U44+V44+W44+X44 -> 125.005 | G44: 0 | I44: 0.1428571429 | J44: =SUMIF($AD$4:$AD$59,$D44,$AE$4:$AE$59) -> 0 | K44: 0 | L44: 0 | M44: 125.005 | N44: 0 | O44: 0 | P44: 0 | Q44: 0 | R44: 0 | S44: 0 | T44: 0 | U44: 0 | V44: 0 | W44: 0 | X44: 0 | Y44: 0 | Z44: 0 | AA44: 0 | AB44: 0 | AC44: 0
A45: 42 | B45: -4 | C45: 38 | D45: Gustav Hollnagel | E45: =J45+K45+L45+M45+N45+O45+P45+Q45+R45+S45+T45+U45+V45+W45+X45+Y45+Z45 -> 120.0062 | G45: 0 | I45: 0 | J45: =SUMIF($AD$4:$AD$59,$D45,$AE$4:$AE$59) -> 120.0062 | K45: 0 | L45: 0 | M45: 0 | N45: 0 | O45: 0 | P45: 0 | Q45: 0 | R45: 0 | S45: 0 | T45: 0 | U45: 0 | V45: 0 | W45: 0 | X45: 0 | Y45: 0 | Z45: 0 | AA45: 0 | AB45: 0 | AC45: 0
A46: 43 | B46: -4 | C46: 39 | D46: Holger Hänel | E46: =J46+K46+L46+M46+N46+O46+P46+Q46+R46+S46+T46+U46+V46+W46+X46+Y46+Z46 -> 120.0058 | F46: =E46-G46 -> 120.0058 | G46: 0 | I46: 0 | J46: =SUMIF($AD$4:$AD$59,$D46,$AE$4:$AE$59) -> 120.0058 | K46: =SUMIF($AF$4:$AF$43,$D46,$AG$4:$AG$43) -> 0 | L46: =SUMIF($AH$4:$AH$43,$D46,$AI$4:$AI$43) -> 0 | M46: =SUMIF($AJ$4:$AJ$43,$D46,$AK$4:$AK$43) -> 0 | N46: =SUMIF($AL$4:$AL$43,$D46,$AM$4:$AM$43) -> 0 | O46: 0 | P46: =SUMIF($AP$4:$AP$43,$D46,$AQ$4:$AQ$43) -> 0 | Q46: =SUMIF($AR$4:$AR$43,$D46,$AS$4:$AS$43) -> 0 | R46: =SUMIF(AT$4:AT$43,$D46,AU$4:AU$43) -> 0 | S46: =SUMIF(AV$4:AV$43,$D46,AW$4:AW$43) -> 0 | T46: 0 | U46: =SUMIF(AZ$4:AZ$43,$D46,BA$4:BA$43) -> 0 | V46: =SUMIF(BB$4:BB$43,$D46,BC$4:BC$43) -> 0 | W46: 0 | X46: 0 | Y46: 0 | Z46: 0 | AA46: 0 | AB46: 0 | AC46: 0
A47: 44 | B47: -4 | C47: 40 | D47: Matthias Kosniowski | E47: =J47+K47+L47+M47+N47+O47+P47+Q47+R47+S47+T47+U47+V47+W47+X47 -> 120.0054 | G47: 0 | I47: 0 | J47: =SUMIF($AD$4:$AD$59,$D47,$AE$4:$AE$59) -> 0 | K47: 0 | L47: 0 | M47: 120.0054 | N47: 0 | O47: 0 | P47: 0 | Q47: 0 | R47: 0 | S47: 0 | T47: 0 | U47: 0 | V47: 0 | W47: 0 | X47: 0 | Y47: 0 | Z47: 0 | AA47: 0 | AB47: 0 | AC47: 0
A48: 45 | B48: -4 | C48: 41 | D48: Thomas Rath | E48: 120.004 | G48: 0 | I48: 0 | J48: =SUMIF($AD$4:$AD$59,$D48,$AE$4:$AE$59) -> 0 | K48: 0 | L48: 0 | M48: 0 | N48: 120.004 | O48: 0 | P48: 0 | Q48: 0 | R48: 0 | S48: 0 | T48: 0 | U48: 0 | V48: 0 | W48: 0 | X48: 0 | Y48: 0 | Z48: 0 | AA48: 0 | AB48: 0 | AC48: 0
A49: 46 | B49: -4 | C49: 42 | D49: Christian Schmid | E49: 115.005 | G49: 0 | H49: 36 | J49: =SUMIF($AD$4:$AD$59,$D49,$AE$4:$AE$59) -> 0 | K49: 0 | L49: 0 | M49: 0 | N49: 0 | O49: 115.005 | P49: 0 | Q49: 0 | R49: 0 | S49: 0 | T49: 0 | U49: 0 | V49: 0 | W49: 0 | X49: 0 | Y49: 0 | Z49: 0 | AA49: 0 | AB49: 0 | AC49: 0
A50: 47 | B50: 11 | C50: 58 | D50: Dave Brachmanski | E50: 110.0118 | G50: 0 | J50: =SUMIF($AD$4:$AD$59,$D50,$AE$4:$AE$59) -> 0 | K50: 0 | L50: 0 | M50: 50.004 | N50: 0 | O50: 0 | P50: 60.0078 | Q50: 0 | R50: 0 | S50: 0 | T50: 0 | U50: 0 | V50: 0 | W50: 0 | X50: 0 | Y50: 0 | Z50: 0 | AA50: 0 | AB50: 0 | AC50: 0
A51: 48 | B51: -5 | C51: 43 | D51: Dennis Kruse | E51: 110.0052 | G51: 0 | J51: =SUMIF($AD$4:$AD$59,$D51,$AE$4:$AE$59) -> 0 | K51: 0 | L51: 0 | M51: 110.0052 | N51: 0 | O51: 0 | P51: 0 | Q51: 0 | R51: 0 | S51: 0 | T51: 0 | U51: 0 | V51: 0 | W51: 0 | X51: 0 | Y51: 0 | Z51: 0 | AA51: 0 | AB51: 0 | AC51: 0
A52: 49 | B52: -5 | C52: 44 | D52: Tom Müller | E52: 75.004 | G52: 0 | J52: =SUMIF($AD$4:$AD$59,$D52,$AE$4:$AE$59) -> 0 | K52: 0 | L52: 75.004 | M52: 0 | N52: 0 | O52: 0 | P52: 0 | Q52: 0 | R52: 0 | S52: 0 | T52: 0 | U52: 0 | V52: 0 | W52: 0 | X52: 0 | Y52: 0 | Z52: 0 | AA52: 0 | AB52: 0 | AC52: 0
A53: 50 | B53: -5 | C53: 45 | D53: Andreas Hollin | E53: =J53+K53+L53+M53+N53+O53+P53+Q53+R53+S53+T53+U53+V53+W53+X53+Y53+Z53 -> 65.0078 | F53: =E53-G53 -> 65.0078 | G53: 0 | J53: =SUMIF($AD$4:$AD$59,$D53,$AE$4:$AE$59) -> 65.0078 | K53: 0 | L53: 0 | M53: 0 | N53: 0 | O53: 0 | P53: 0 | Q53: 0 | R53: 0 | S53: 0 | T53: 0 | U53: 0 | V53: 0 | W53: 0 | X53: 0 | Y53: 0 | Z53: 0 | AA53: 0 | AB53: 0 | AC53: 0
A54: 51 | B54: -4 | C54: 47 | D54: Christopher Jaritz | E54: =J54+K54+L54+M54+N54+O54+P54+Q54+R54+S54+T54+U54+V54+W54+X54+Y54+Z54 -> 60.0064 | F54: =E54-G54 -> 60.0064 | G54: 0 | J54: =SUMIF($AD$4:$AD$59,$D54,$AE$4:$AE$59) -> 0 | K54: 0 | L54: 0 | M54: 0 | N54: 0 | O54: 60.0064 | P54: 0 | Q54: 0 | R54: 0 | S54: 0 | T54: 0 | U54: 0 | V54: 0 | W54: 0 | X54: 0 | Y54: 0 | Z54: 0 | AA54: 0 | AB54: 0 | AC54: 0
A55: 52 | B55: -4 | C55: 48 | D55: Hermann Kraus | E55: =J55+K55+L55+M55+N55+O55+P55+Q55+R55+S55+T55+U55+V55+W55+X55+Y55+Z55 -> 60.0056 | F55: =E55-G55 -> 60.0056 | G55: 0 | J55: =SUMIF($AD$4:$AD$59,$D55,$AE$4:$AE$59) -> 0 | K55: 0 | L55: 0 | M55: 0 | N55: 0 | O55: 60.0056 | P55: 0 | Q55: 0 | R55: 0 | S55: 0 | T55: 0 | U55: 0 | V55: 0 | W55: 0 | X55: 0 | Y55: 0 | Z55: 0 | AA55: 0 | AB55: 0 | AC55: 0
A56: 53 | B56: -4 | C56: 49 | D56: Jürgen Scharl | E56: =J56+K56+L56+M56+N56+O56+P56+Q56+R56+S56+T56+U56+V56+W56+X56 -> 60.0052 | G56: 0 | J56: =SUMIF($AD$4:$AD$59,$D56,$AE$4:$AE$59) -> 0 | K56: 0 | L56: 0 | M56: 0 | N56: 0 | O56: 60.0052 | P56: 0 | Q56: 0 | R56: 0 | S56: 0 | T56: 0 | U56: 0 | V56: 0 | W56: 0 | X56: 0 | Y56: 0 | Z56: 0 | AA56: 0 | AB56: 0 | AC56: 0
A57: 54 | B57: -4 | C57: 50 | D57: Rene Isermann | E57: =J57+K57+L57+M57+N57+O57+P57+Q57+R57+S57+T57+U57+V57+W57+X57 -> 55.0064 | G57: 0 | J57: =SUMIF($AD$4:$AD$59,$D57,$AE$4:$AE$59) -> 0 | K57: 0 | L57: 0 | M57: 55.0064 | N57: 0 | O57: 0 | P57: 0 | Q57: 0 | R57: 0 | S57: 0 | T57: 0 | U57: 0 | V57: 0 | W57: 0 | X57: 0 | Y57: 0 | Z57: 0 | AA57: 0 | AB57: 0 | AC57: 0
A58: 55 | B58: -4 | C58: 51 | D58: Stephan Rzepka | E58: =J58+K58+L58+M58+N58+O58+P58+Q58+R58+S58+T58+U58+V58+W58+X58 -> 55.0044 | G58: 0 | J58: =SUMIF($AD$4:$AD$59,$D58,$AE$4:$AE$59) -> 0 | K58: 0 | L58: 0 | M58: 55.0044 | N58: 0 | O58: 0 | P58: 0 | Q58: 0 | R58: 0 | S58: 0 | T58: 0 | U58: 0 | V58: 0 | W58: 0 | X58: 0 | Y58: 0 | Z58: 0 | AA58: 0 | AB58: 0 | AC58: 0
A59: 56 | B59: -4 | C59: 52 | D59: Frank Rapior | E59: =J59+K59+L59+M59+N59+O59+P59+Q59+R59+S59+T59+U59+V59+W59+X59 -> 55.0042 | G59: 0 | J59: =SUMIF($AD$4:$AD$59,$D59,$AE$4:$AE$59) -> 0 | K59: 0 | L59: 0 | M59: 0 | N59: 55.0042 | O59: 0 | P59: 0 | Q59: 0 | R59: 0 | S59: 0 | T59: 0 | U59: 0 | V59: 0 | W59: 0 | X59: 0 | Y59: 0 | Z59: 0 | AA59: 0 | AB59: 0 | AC59: 0
A60: 57 | B60: -3 | C60: 54 | D60: Mario Beetz | E60: =J60+K60+L60+M60+N60+O60+P60+Q60+R60+S60+T60+U60+V60+W60+X60+Y60+Z60 -> 50.01154444 | F60: =E60-G60 -> 50.01154444 | G60: 0 | J60: =SUMIF($AD$4:$AD$59,$D60,$AE$4:$AE$59) -> 50.01154444 | K60: 0 | L60: 0 | M60: 0 | N60: 0 | O60: 0 | P60: 0 | Q60: 0 | R60: 0 | S60: 0 | T60: 0 | U60: 0 | V60: 0 | W60: 0 | X60: 0 | Y60: 0 | Z60: 0 | AA60: 0 | AB60: 0 | AC60: 0
A61: 58 | B61: -14 | C61: 44 | D61: Johannes Schranz | E61: =J61+K61+L61+M61+N61+O61+P61+Q61+R61+S61+T61+U61+V61+W61+X61+Y61+Z61 -> 50.005 | G61: 0 | J61: =SUMIF($AD$4:$AD$59,$D61,$AE$4:$AE$59) -> 0 | K61: 0 | L61: 0 | M61: 0 | N61: 0 | O61: 0 | P61: 50.005 | Q61: 0 | R61: 0 | S61: 0 | T61: 0 | U61: 0 | V61: 0 | W61: 0 | X61: 0 | Y61: 0 | Z61: 0 | AA61: 0 | AB61: 0 | AC61: 0
A62: 59 | B62: -3 | C62: 56 | D62: Dieter Schmidt | E62: =J62+K62+L62+M62+N62+O62+P62+Q62+R62+S62+T62+U62+V62+W62+X62 -> 50.0048 | G62: 0 | J62: =SUMIF($AD$4:$AD$59,$D62,$AE$4:$AE$59) -> 0 | K62: 0 | L62: 0 | M62: 0 | N62: 0 | O62: 50.0048 | P62: 0 | Q62: 0 | R62: 0 | S62: 0 | T62: 0 | U62: 0 | V62: 0 | W62: 0 | X62: 0 | Y62: 0 | Z62: 0 | AA62: 0 | AB62: 0 | AC62: 0
A63: 60 | B63: -3 | C63: 57 | D63: Sergej Martynov | E63: 50.0048 | G63: 0 | J63: =SUMIF($AD$4:$AD$59,$D63,$AE$4:$AE$59) -> 0 | K63: 0 | L63: 0 | M63: 50.0048 | N63: 0 | O63: 0 | P63: 0 | Q63: 0 | R63: 0 | S63: 0 | T63: 0 | U63: 0 | V63: 0 | W63: 0 | X63: 0 | Y63: 0 | Z63: 0 | AA63: 0 | AB63: 0 | AC63: 0
A64: 61 | B64: -2 | C64: 59 | D64: Jürgen Reinel | E64: 50.0038 | G64: 0 | J64: =SUMIF($AD$4:$AD$59,$D64,$AE$4:$AE$59) -> 0 | K64: 0 | L64: 0 | M64: 0 | N64: 50.0038 | O64: 0 | P64: 0 | Q64: 0 | R64: 0 | S64: 0 | T64: 0 | U64: 0 | V64: 0 | W64: 0 | X64: 0 | Y64: 0 | Z64: 0 | AA64: 0 | AB64: 0 | AC64: 0
A65: 62 | B65: -2 | C65: 60 | D65: Marco Rentsch | E65: 50.0036 | G65: 0 | J65: =SUMIF($AD$4:$AD$59,$D65,$AE$4:$AE$59) -> 0 | K65: 0 | L65: 0 | M65: 0 | N65: 50.0036 | O65: 0 | P65: 0 | Q65: 0 | R65: 0 | S65: 0 | T65: 0 | U65: 0 | V65: 0 | W65: 0 | X65: 0 | Y65: 0 | Z65: 0 | AA65: 0 | AB65: 0 | AC65: 0
A66: 63 | B66: -1 | C66: 62 | D66: Mario Gehrke | E66: 40.0056 | G66: 0 | J66: =SUMIF($AD$4:$AD$59,$D66,$AE$4:$AE$59) -> 0 | K66: 40.0056 | L66: 0 | M66: 0 | N66: 0 | O66: 0 | P66: 0 | Q66: 0 | R66: 0 | S66: 0 | T66: 0 | U66: 0 | V66: 0 | W66: 0 | X66: 0 | Y66: 0 | Z66: 0 | AA66: 0 | AB66: 0 | AC66: 0
A67: 64 | B67: =IF(C67="","",C67-A67) -> -1 | C67: 63 | D67: Sebastian Lux | E67: 40.0042 | G67: =INDEX(J67:X67,MATCH(LARGE(J67:X67,COUNTIF(J67:X67,">="&0)),J67:X67,0)) -> 0 | J67: =SUMIF($AD$4:$AD$59,$D67,$AE$4:$AE$59) -> 0 | K67: =SUMIF($AF$4:$AF$43,$D67,$AG$4:$AG$43) -> 40.0042 | L67: =SUMIF($AH$4:$AH$43,$D67,$AI$4:$AI$43) -> 0 | M67: =SUMIF($AJ$4:$AJ$43,$D67,$AK$4:$AK$43) -> 0 | N67: =SUMIF($AL$4:$AL$43,$D67,$AM$4:$AM$43) -> 0 | O67: =SUMIF($AN$4:$AN$43,$D67,$AO$4:$AO$43) -> 0 | P67: =SUMIF($AP$4:$AP$43,$D67,$AQ$4:$AQ$43) -> 0 | Q67: =SUMIF($AR$4:$AR$43,$D67,$AS$4:$AS$43) -> 0 | R67: =SUMIF(AT$4:AT$43,$D67,AU$4:AU$43) -> 0 | S67: =SUMIF(AV$4:AV$43,$D67,AW$4:AW$43) -> 0 | T67: =SUMIF(AX$4:AX$43,$D67,AY$4:AY$43) -> 0 | U67: =SUMIF(AZ$4:AZ$43,$D67,BA$4:BA$43) -> 0 | V67: =SUMIF(BB$4:BB$43,$D67,BC$4:BC$43) -> 0 | W67: 0 | X67: 0 | Y67: 0 | Z67: 0 | AA67: 0 | AB67: 0 | AC67: 0
A68: 65 | B68: -1 | C68: 64 | D68: Mats Weber | E68: 30.0056 | G68: 0 | J68: =SUMIF($AD$4:$AD$59,$D68,$AE$4:$AE$59) -> 0 | K68: 0 | L68: 30.0056 | M68: 0 | N68: 0 | O68: 0 | P68: 0 | Q68: 0 | R68: 0 | S68: 0 | T68: 0 | U68: 0 | V68: 0 | W68: =SUMIF(BD$4:BD$43,$D68,BE$4:BE$43) -> 0 | X68: =SUMIF(BF$4:BF$43,$D68,BG$4:BG$43) -> 0 | Y68: =SUMIF(BH$4:BH$43,$D68,BI$4:BI$43) -> 0 | Z68: =SUMIF(BJ$4:BJ$43,$D68,BK$4:BK$43) -> 0 | AA68: =SUMIF(BL$4:BL$43,$D68,BM$4:BM$43) -> 0 | AB68: =SUMIF(BN$4:BN$43,$D68,BO$4:BO$43) -> 0 | AC68: =SUMIF(BP$4:BP$43,$D68,BQ$4:BQ$43) -> 0
A69: 66 | D69: Aaron Bocksberger | E69: =J69+K69+L69+M69+N69+O69+P69+Q69+R69+S69+T69+U69+V69+W69+X69+Y69+Z69 -> 0 | F69: =E69-G69 -> 0 | G69: 0 | J69: =SUMIF($AD$4:$AD$59,$D69,$AE$4:$AE$59) -> 0 | K69: 0 | L69: 0 | M69: 0 | N69: 0 | O69: 0 | P69: 0 | Q69: 0 | R69: 0 | S69: 0 | T69: 0 | U69: 0 | V69: 0 | W69: 0 | X69: 0 | Y69: 0 | Z69: 0 | AA69: 0 | AB69: 0 | AC69: 0
A70: 67 | D70: Abdolkarim Setoudeh | E70: =J70+K70+L70+M70+N70+O70+P70+Q70+R70+S70+T70+U70+V70+W70+X70+Y70+Z70 -> 0 | G70: 0 | J70: =SUMIF($AD$4:$AD$59,$D70,$AE$4:$AE$59) -> 0 | K70: 0 | L70: 0 | M70: 0 | N70: 0 | O70: 0 | P70: 0 | Q70: 0 | R70: 0 | S70: 0 | T70: 0 | U70: 0 | V70: 0 | W70: 0 | X70: 0 | Y70: 0 | Z70: 0 | AA70: 0 | AB70: 0 | AC70: 0
A71: 68 | D71: Aissam Labiad | E71: =J71+K71+L71+M71+N71+O71+P71+Q71+R71+S71+T71+U71+V71+W71+X71+Y71+Z71 -> 0 | G71: 0 | J71: =SUMIF($AD$4:$AD$59,$D71,$AE$4:$AE$59) -> 0 | K71: 0 | L71: 0 | M71: 0 | N71: 0 | O71: 0 | P71: 0 | Q71: 0 | R71: 0 | S71: 0 | T71: 0 | U71: 0 | V71: 0 | W71: 0 | X71: 0 | Y71: 0 | Z71: 0 | AA71: 0 | AB71: 0 | AC71: 0
D72: Alex Nikitin | E72: =J72+K72+L72+M72+N72+O72+P72+Q72+R72+S72+T72+U72+V72+W72+X72 -> 0 | G72: 0 | J72: =SUMIF($AD$4:$AD$59,$D72,$AE$4:$AE$59) -> 0 | K72: 0 | L72: 0 | M72: 0 | N72: 0 | O72: 0 | P72: 0 | Q72: 0 | R72: 0 | S72: 0 | T72: 0 | U72: 0 | V72: 0 | W72: 0 | X72: 0 | Y72: 0 | Z72: 0 | AA72: 0 | AB72: 0 | AC72: 0
D73: Alexander Usbeck | E73: =J73+K73+L73+M73+N73+O73+P73+Q73+R73+S73+T73+U73+V73+W73+X73+Y73+Z73 -> 0 | G73: 0 | J73: =SUMIF($AD$4:$AD$59,$D73,$AE$4:$AE$59) -> 0 | K73: 0 | L73: 0 | M73: 0 | N73: 0 | O73: 0 | P73: 0 | Q73: 0 | R73: 0 | S73: 0 | T73: 0 | U73: 0 | V73: 0 | W73: 0 | X73: 0 | Y73: 0 | Z73: 0 | AA73: 0 | AB73: 0 | AC73: 0
D74: Ammar Al Ani | E74: =J74+K74+L74+M74+N74+O74+P74+Q74+R74+S74+T74+U74+V74+W74+X74+Y74+Z74 -> 0 | F74: =E74-G74 -> 0 | G74: 0 | J74: =SUMIF($AD$4:$AD$59,$D74,$AE$4:$AE$59) -> 0 | K74: 0 | L74: 0 | M74: 0 | N74: 0 | O74: 0 | P74: 0 | Q74: 0 | R74: 0 | S74: 0 | T74: 0 | U74: 0 | V74: 0 | W74: 0 | X74: 0 | Y74: 0 | Z74: 0 | AA74: 0 | AB74: 0 | AC74: 0
D75: Andre Jung | E75: =J75+K75+L75+M75+N75+O75+P75+Q75+R75+S75+T75+U75+V75+W75+X75+Y75+Z75 -> 0 | F75: =E75-G75 -> 0 | G75: 0 | J75: =SUMIF($AD$4:$AD$59,$D75,$AE$4:$AE$59) -> 0 | K75: 0 | L75: 0 | M75: 0 | N75: 0 | O75: 0 | P75: 0 | Q75: 0 | R75: 0 | S75: 0 | T75: 0 | U75: 0 | V75: 0 | W75: 0 | X75: 0 | Y75: 0 | Z75: 0 | AA75: 0 | AB75: 0 | AC75: 0
D76: André Osowski | E76: =J76+K76+L76+M76+N76+O76+P76+Q76+R76+S76+T76+U76+V76+W76+X76+Y76+Z76 -> 0 | F76: =E76-G76 -> 0 | G76: 0 | J76: =SUMIF($AD$4:$AD$59,$D76,$AE$4:$AE$59) -> 0 | K76: 0 | L76: 0 | M76: 0 | N76: 0 | O76: 0 | P76: 0 | Q76: 0 | R76: 0 | S76: 0 | T76: 0 | U76: 0 | V76: 0 | W76: 0 | X76: 0 | Y76: 0 | Z76: 0 | AA76: 0 | AB76: 0 | AC76: 0
B77: 49 | C77: 49 | D77: Andre Ossowski | E77: =J77+K77+L77+M77+N77+O77+P77+Q77+R77+S77+T77+U77+V77+W77+X77 -> 0 | G77: 0 | J77: =SUMIF($AD$4:$AD$59,$D77,$AE$4:$AE$59) -> 0 | K77: 0 | L77: 0 | M77: 0 | N77: 0 | O77: 0 | P77: 0 | Q77: 0 | R77: 0 | S77: 0 | T77: 0 | U77: 0 | V77: 0 | W77: 0 | X77: 0 | Y77: 0 | Z77: 0 | AA77: 0 | AB77: 0 | AC77: 0
B78: 14 | C78: 14 | D78: Andreas Hartung | E78: =J78+K78+L78+M78+N78+O78+P78+Q78+R78+S78+T78+U78+V78+W78+X78+Y78+Z78 -> 0 | F78: =E78-G78 -> 0 | G78: 0 | J78: =SUMIF($AD$4:$AD$59,$D78,$AE$4:$AE$59) -> 0 | K78: 0 | L78: 0 | M78: 0 | N78: 0 | O78: 0 | P78: 0 | Q78: 0 | R78: 0 | S78: 0 | T78: 0 | U78: 0 | V78: 0 | W78: 0 | X78: 0 | Y78: 0 | Z78: 0 | AA78: 0 | AB78: 0 | AC78: 0
D79: Andreas Lositza | E79: =J79+K79+L79+M79+N79+O79+P79+Q79+R79+S79+T79+U79+V79+W79+X79+Y79+Z79 -> 0 | F79: =E79-G79 -> 0 | G79: 0 | J79: =SUMIF($AD$4:$AD$59,$D79,$AE$4:$AE$59) -> 0 | K79: 0 | L79: 0 | M79: 0 | N79: 0 | O79: 0 | P79: 0 | Q79: 0 | R79: 0 | S79: 0 | T79: 0 | U79: 0 | V79: 0 | W79: 0 | X79: 0 | Y79: 0 | Z79: 0 | AA79: 0 | AB79: 0 | AC79: 0
D80: Andreas Pohl | E80: =J80+K80+L80+M80+N80+O80+P80+Q80+R80+S80+T80+U80+V80+W80+X80+Y80+Z80 -> 0 | F80: =E80-G80 -> 0 | G80: 0 | J80: =SUMIF($AD$4:$AD$59,$D80,$AE$4:$AE$59) -> 0 | K80: 0 | L80: 0 | M80: 0 | N80: 0 | O80: 0 | P80: 0 | Q80: 0 | R80: 0 | S80: 0 | T80: 0 | U80: 0 | V80: 0 | W80: 0 | X80: 0 | Y80: 0 | Z80: 0 | AA80: 0 | AB80: 0 | AC80: 0
D81: Andreas Schreier | E81: =J81+K81+L81+M81+N81+O81+P81+Q81+R81+S81+T81+U81+V81+W81+X81+Y81+Z81 -> 0 | F81: =E81-G81 -> 0 | G81: 0 | J81: =SUMIF($AD$4:$AD$59,$D81,$AE$4:$AE$59) -> 0 | K81: 0 | L81: 0 | M81: 0 | N81: 0 | O81: 0 | P81: 0 | Q81: 0 | R81: 0 | S81: 0 | T81: 0 | U81: 0 | V81: 0 | W81: 0 | X81: 0 | Y81: 0 | Z81: 0 | AA81: 0 | AB81: 0 | AC81: 0
D82: Ayhan Ekiz | E82: =J82+K82+L82+M82+N82+O82+P82+Q82+R82+S82+T82+U82+V82+W82+X82+Y82+Z82 -> 0 | F82: =E82-G82 -> 0 | G82: 0 | J82: =SUMIF($AD$4:$AD$59,$D82,$AE$4:$AE$59) -> 0 | K82: 0 | L82: 0 | M82: 0 | N82: 0 | O82: 0 | P82: 0 | Q82: 0 | R82: 0 | S82: 0 | T82: 0 | U82: 0 | V82: 0 | W82: 0 | X82: 0 | Y82: 0 | Z82: 0 | AA82: 0 | AB82: 0 | AC82: 0
D83: Behnam Az | E83: =J83+K83+L83+M83+N83+O83+P83+Q83+R83+S83+T83+U83+V83+W83+X83 -> 0 | G83: 0 | J83: =SUMIF($AD$4:$AD$59,$D83,$AE$4:$AE$59) -> 0 | K83: 0 | L83: 0 | M83: 0 | N83: 0 | O83: 0 | P83: 0 | Q83: 0 | R83: 0 | S83: 0 | T83: 0 | U83: 0 | V83: 0 | W83: 0 | X83: 0 | Y83: 0 | Z83: 0 | AA83: 0 | AB83: 0 | AC83: 0
D84: Benjamin Baumann | E84: =J84+K84+L84+M84+N84+O84+P84+Q84+R84+S84+T84+U84+V84+W84+X84+Y84+Z84 -> 0 | G84: 0 | J84: =SUMIF($AD$4:$AD$59,$D84,$AE$4:$AE$59) -> 0 | K84: 0 | L84: 0 | M84: 0 | N84: 0 | O84: 0 | P84: 0 | Q84: 0 | R84: 0 | S84: 0 | T84: 0 | U84: 0 | V84: 0 | W84: 0 | X84: 0 | Y84: 0 | Z84: 0 | AA84: 0 | AB84: 0 | AC84: 0
B85: 62 | C85: 62 | D85: Bernd Brettschneider | E85: =J85+K85+L85+M85+N85+O85+P85+Q85+R85+S85+T85+U85+V85+W85+X85 -> 0 | G85: 0 | J85: =SUMIF($AD$4:$AD$59,$D85,$AE$4:$AE$59) -> 0 | K85: 0 | L85: 0 | M85: 0 | N85: 0 | O85: 0 | P85: 0 | Q85: 0 | R85: 0 | S85: 0 | T85: 0 | U85: 0 | V85: 0 | W85: 0 | X85: 0 | Y85: 0 | Z85: 0 | AA85: 0 | AB85: 0 | AC85: 0
D86: Björn Rommel | E86: =J86+K86+L86+M86+N86+O86+P86+Q86+R86+S86+T86+U86+V86+W86+X86+Y86+Z86 -> 0 | F86: =E86-G86 -> 0 | G86: 0 | J86: =SUMIF($AD$4:$AD$59,$D86,$AE$4:$AE$59) -> 0 | K86: 0 | L86: 0 | M86: 0 | N86: 0 | O86: 0 | P86: 0 | Q86: 0 | R86: 0 | S86: 0 | T86: 0 | U86: 0 | V86: 0 | W86: 0 | X86: 0 | Y86: 0 | Z86: 0 | AA86: 0 | AB86: 0 | AC86: 0
D87: Björn Schumann | E87: =J87+K87+L87+M87+N87+O87+P87+Q87+R87+S87+T87+U87+V87+W87+X87+Y87+Z87 -> 0 | F87: =E87-G87 -> 0 | G87: 0 | J87: =SUMIF($AD$4:$AD$59,$D87,$AE$4:$AE$59) -> 0 | K87: 0 | L87: 0 | M87: 0 | N87: 0 | O87: 0 | P87: 0 | Q87: 0 | R87: 0 | S87: 0 | T87: 0 | U87: 0 | V87: 0 | W87: 0 | X87: 0 | Y87: 0 | Z87: 0 | AA87: 0 | AB87: 0 | AC87: 0
D88: Carsten Schröter | E88: =J88+K88+L88+M88+N88+O88+P88+Q88+R88+S88+T88+U88+V88+W88+X88+Y88+Z88 -> 0 | F88: =E88-G88 -> 0 | G88: 0 | J88: =SUMIF($AD$4:$AD$59,$D88,$AE$4:$AE$59) -> 0 | K88: 0 | L88: 0 | M88: 0 | N88: 0 | O88: 0 | P88: 0 | Q88: 0 | R88: 0 | S88: 0 | T88: 0 | U88: 0 | V88: 0 | W88: 0 | X88: 0 | Y88: 0 | Z88: 0 | AA88: 0 | AB88: 0 | AC88: 0
D89: Chris Banks | E89: =J89+K89+L89+M89+N89+O89+P89+Q89+R89+S89+T89+U89+V89+W89+X89 -> 0 | G89: 0 | J89: =SUMIF($AD$4:$AD$59,$D89,$AE$4:$AE$59) -> 0 | K89: 0 | L89: 0 | M89: 0 | N89: 0 | O89: 0 | P89: 0 | Q89: 0 | R89: 0 | S89: 0 | T89: 0 | U89: 0 | V89: 0 | W89: 0 | X89: 0 | Y89: 0 | Z89: 0 | AA89: 0 | AB89: 0 | AC89: 0
D90: Christian Fröhlich | E90: =J90+K90+L90+M90+N90+O90+P90+Q90+R90+S90+T90+U90+V90+W90+X90+Y90+Z90 -> 0 | F90: =E90-G90 -> 0 | G90: 0 | J90: =SUMIF($AD$4:$AD$59,$D90,$AE$4:$AE$59) -> 0 | K90: 0 | L90: 0 | M90: 0 | N90: 0 | O90: 0 | P90: 0 | Q90: 0 | R90: 0 | S90: 0 | T90: 0 | U90: 0 | V90: 0 | W90: 0 | X90: 0 | Y90: 0 | Z90: 0 | AA90: 0 | AB90: 0 | AC90: 0
B91: 17 | C91: 17 | D91: Christian Gabriel | E91: =J91+K91+L91+M91+N91+O91+P91+Q91+R91+S91+T91+U91+V91+W91+X91 -> 0 | G91: 0 | J91: =SUMIF($AD$4:$AD$59,$D91,$AE$4:$AE$59) -> 0 | K91: 0 | L91: 0 | M91: 0 | N91: 0 | O91: 0 | P91: 0 | Q91: 0 | R91: 0 | S91: 0 | T91: 0 | U91: 0 | V91: 0 | W91: 0 | X91: 0 | Y91: 0 | Z91: 0 | AA91: 0 | AB91: 0 | AC91: 0
D92: Christian Jungk | E92: =J92+K92+L92+M92+N92+O92+P92+Q92+R92+S92+T92+U92+V92+W92+X92 -> 0 | G92: 0 | J92: =SUMIF($AD$4:$AD$59,$D92,$AE$4:$AE$59) -> 0 | K92: 0 | L92: 0 | M92: 0 | N92: 0 | O92: 0 | P92: 0 | Q92: 0 | R92: 0 | S92: 0 | T92: 0 | U92: 0 | V92: 0 | W92: 0 | X92: 0 | Y92: 0 | Z92: 0 | AA92: 0 | AB92: 0 | AC92: 0
D93: Christian Zenß | E93: =J93+K93+L93+M93+N93+O93+P93+Q93+R93+S93+T93+U93+V93+W93+X93+Y93+Z93 -> 0 | G93: 0 | J93: =SUMIF($AD$4:$AD$59,$D93,$AE$4:$AE$59) -> 0 | K93: 0 | L93: 0 | M93: 0 | N93: 0 | O93: 0 | P93: 0 | Q93: 0 | R93: 0 | S93: 0 | T93: 0 | U93: 0 | V93: 0 | W93: 0 | X93: 0 | Y93: 0 | Z93: 0 | AA93: 0 | AB93: 0 | AC93: 0
D94: Christoph Richter | E94: =J94+K94+L94+M94+N94+O94+P94+Q94+R94+S94+T94+U94+V94+W94+X94+Y94+Z94 -> 0 | F94: =E94-G94 -> 0 | G94: 0 | J94: =SUMIF($AD$4:$AD$59,$D94,$AE$4:$AE$59) -> 0 | K94: 0 | L94: 0 | M94: 0 | N94: 0 | O94: 0 | P94: 0 | Q94: 0 | R94: 0 | S94: 0 | T94: 0 | U94: 0 | V94: 0 | W94: 0 | X94: 0 | Y94: 0 | Z94: 0 | AA94: 0 | AB94: 0 | AC94: 0
B95: 31 | C95: 31 | D95: Christopher Buße | E95: =J95+K95+L95+M95+N95+O95+P95+Q95+R95+S95+T95+U95+V95+W95+X95+Y95+Z95 -> 0 | G95: 0 | J95: =SUMIF($AD$4:$AD$59,$D95,$AE$4:$AE$59) -> 0 | K95: 0 | L95: 0 | M95: 0 | N95: 0 | O95: 0 | P95: 0 | Q95: 0 | R95: 0 | S95: 0 | T95: 0 | U95: 0 | V95: 0 | W95: 0 | X95: 0 | Y95: 0 | Z95: 0 | AA95: 0 | AB95: 0 | AC95: 0
D96: Cihan Ekiz | E96: =J96+K96+L96+M96+N96+O96+P96+Q96+R96+S96+T96+U96+V96+W96+X96+Y96+Z96 -> 0 | F96: =E96-G96 -> 0 | G96: 0 | J96: =SUMIF($AD$4:$AD$59,$D96,$AE$4:$AE$59) -> 0 | K96: 0 | L96: 0 | M96: 0 | N96: 0 | O96: 0 | P96: 0 | Q96: 0 | R96: 0 | S96: 0 | T96: 0 | U96: 0 | V96: 0 | W96: 0 | X96: 0 | Y96: 0 | Z96: 0 | AA96: 0 | AB96: 0 | AC96: 0
D97: Daniel Schneider | E97: =J97+K97+L97+M97+N97+O97+P97+Q97+R97+S97+T97+U97+V97+W97+X97 -> 0 | G97: 0 | J97: =SUMIF($AD$4:$AD$59,$D97,$AE$4:$AE$59) -> 0 | K97: 0 | L97: 0 | M97: 0 | N97: 0 | O97: 0 | P97: 0 | Q97: 0 | R97: 0 | S97: 0 | T97: 0 | U97: 0 | V97: 0 | W97: 0 | X97: 0 | Y97: 0 | Z97: 0 | AA97: 0 | AB97: 0 | AC97: 0
D98: Danny Fichtmüller | E98: =J98+K98+L98+M98+N98+O98+P98+Q98+R98+S98+T98+U98+V98+W98+X98+Y98+Z98 -> 0 | F98: =E98-G98 -> 0 | G98: 0 | J98: =SUMIF($AD$4:$AD$59,$D98,$AE$4:$AE$59) -> 0 | K98: 0 | L98: 0 | M98: 0 | N98: 0 | O98: 0 | P98: 0 | Q98: 0 | R98: 0 | S98: 0 | T98: 0 | U98: 0 | V98: 0 | W98: 0 | X98: 0 | Y98: 0 | Z98: 0 | AA98: 0 | AB98: 0 | AC98: 0
D99: Daud Ilyas Ghauri | E99: =J99+K99+L99+M99+N99+O99+P99+Q99+R99+S99+T99+U99+V99+W99+X99+Y99+Z99 -> 0 | F99: =E99-G99 -> 0 | G99: =INDEX(J99:X99,MATCH(LARGE(J99:X99,COUNTIF(J99:X99,">="&0)),J99:X99,0)) -> 0 | J99: =SUMIF($AD$4:$AD$59,$D99,$AE$4:$AE$59) -> 0 | K99: =SUMIF($AF$4:$AF$43,$D99,$AG$4:$AG$43) -> 0 | L99: =SUMIF($AH$4:$AH$43,$D99,$AI$4:$AI$43) -> 0 | M99: =SUMIF($AJ$4:$AJ$43,$D99,$AK$4:$AK$43) -> 0 | N99: =SUMIF($AL$4:$AL$43,$D99,$AM$4:$AM$43) -> 0 | O99: =SUMIF($AN$4:$AN$43,$D99,$AO$4:$AO$43) -> 0 | P99: =SUMIF($AP$4:$AP$43,$D99,$AQ$4:$AQ$43) -> 0 | Q99: =SUMIF($AR$4:$AR$43,$D99,$AS$4:$AS$43) -> 0 | R99: =SUMIF(AT$4:AT$43,$D99,AU$4:AU$43) -> 0 | S99: =SUMIF(AV$4:AV$43,$D99,AW$4:AW$43) -> 0 | T99: =SUMIF(AX$4:AX$43,$D99,AY$4:AY$43) -> 0 | U99: =SUMIF(AZ$4:AZ$43,$D99,BA$4:BA$43) -> 0 | V99: =SUMIF(BB$4:BB$43,$D99,BC$4:BC$43) -> 0 | W99: 0 | X99: 0 | Y99: 0 | Z99: 0 | AA99: 0 | AB99: 0 | AC99: 0
B100: 47 | C100: 47 | D100: Dennis Rothaug | E100: =J100+K100+L100+M100+N100+O100+P100+Q100+R100+S100+T100+U100+V100+W100+X100 -> 0 | G100: 0 | J100: =SUMIF($AD$4:$AD$59,$D100,$AE$4:$AE$59) -> 0 | K100: 0 | L100: 0 | M100: 0 | N100: 0 | O100: 0 | P100: 0 | Q100: 0 | R100: 0 | S100: 0 | T100: 0 | U100: 0 | V100: 0 | W100: 0 | X100: 0 | Y100: 0 | Z100: 0 | AA100: 0 | AB100: 0 | AC100: 0
D101: Dominic Schmid | E101: =J101+K101+L101+M101+N101+O101+P101+Q101+R101+S101+T101+U101+V101+W101+X101+Y101+Z101 -> 0 | F101: =E101-G101 -> 0 | G101: 0 | J101: =SUMIF($AD$4:$AD$59,$D101,$AE$4:$AE$59) -> 0 | K101: 0 | L101: 0 | M101: 0 | N101: 0 | O101: 0 | P101: 0 | Q101: 0 | R101: 0 | S101: 0 | T101: 0 | U101: 0 | V101: 0 | W101: 0 | X101: 0 | Y101: 0 | Z101: 0 | AA101: 0 | AB101: 0 | AC101: 0
D102: Dominik Rossmann | E102: =J102+K102+L102+M102+N102+O102+P102+Q102+R102+S102+T102+U102+V102+W102+X102+Y102+Z102 -> 0 | G102: 0 | J102: =SUMIF($AD$4:$AD$59,$D102,$AE$4:$AE$59) -> 0 | K102: 0 | L102: 0 | M102: 0 | N102: 0 | O102: 0 | P102: 0 | Q102: 0 | R102: 0 | S102: 0 | T102: 0 | U102: 0 | V102: 0 | W102: 0 | X102: 0 | Y102: 0 | Z102: 0 | AA102: 0 | AB102: 0 | AC102: 0
D103: Enayat Haidary | E103: =J103+K103+L103+M103+N103+O103+P103+Q103+R103+S103+T103+U103+V103+W103+X103 -> 0 | G103: 0 | J103: =SUMIF($AD$4:$AD$59,$D103,$AE$4:$AE$59) -> 0 | K103: 0 | L103: 0 | M103: 0 | N103: 0 | O103: 0 | P103: 0 | Q103: 0 | R103: 0 | S103: 0 | T103: 0 | U103: 0 | V103: 0 | W103: 0 | X103: 0 | Y103: 0 | Z103: 0 | AA103: 0 | AB103: 0 | AC103: 0
D104: Fabian Schulze | E104: =J104+K104+L104+M104+N104+O104+P104+Q104+R104+S104+T104+U104+V104+W104+X104 -> 0 | G104: 0 | J104: =SUMIF($AD$4:$AD$59,$D104,$AE$4:$AE$59) -> 0 | K104: 0 | L104: 0 | M104: 0 | N104: 0 | O104: 0 | P104: 0 | Q104: 0 | R104: 0 | S104: 0 | T104: 0 | U104: 0 | V104: 0 | W104: 0 | X104: 0 | Y104: 0 | Z104: 0 | AA104: 0 | AB104: 0 | AC104: 0
D105: Felix Glasow | E105: =J105+K105+L105+M105+N105+O105+P105+Q105+R105+S105+T105+U105+V105+W105+X105+Y105+Z105 -> 0 | F105: =E105-G105 -> 0 | G105: 0 | J105: =SUMIF($AD$4:$AD$59,$D105,$AE$4:$AE$59) -> 0 | K105: 0 | L105: 0 | M105: 0 | N105: 0 | O105: 0 | P105: 0 | Q105: 0 | R105: 0 | S105: 0 | T105: 0 | U105: 0 | V105: 0 | W105: 0 | X105: 0 | Y105: 0 | Z105: 0 | AA105: 0 | AB105: 0 | AC105: 0
D106: Felix Rotsching | E106: 0 | F106: 0 | G106: 0 | J106: =SUMIF($AD$4:$AD$59,$D106,$AE$4:$AE$59) -> 0 | K106: 0 | L106: 0 | M106: 0 | N106: 0 | O106: 0 | P106: 0 | Q106: 0 | R106: 0 | S106: 0 | T106: 0 | U106: 0 | V106: 0 | W106: 0 | X106: 0 | Y106: 0 | Z106: 0 | AA106: 0 | AB106: 0 | AC106: 0
D107: Florian Schmidt | E107: 0 | F107: 0 | G107: 0 | J107: =SUMIF($AD$4:$AD$59,$D107,$AE$4:$AE$59) -> 0 | K107: 0 | L107: 0 | M107: 0 | N107: 0 | O107: 0 | P107: 0 | Q107: 0 | R107: 0 | S107: 0 | T107: 0 | U107: 0 | V107: 0 | W107: 0 | X107: 0 | Y107: 0 | Z107: 0 | AA107: 0 | AB107: 0 | AC107: 0
D108: Florian Tetzner | E108: 0 | F108: 0 | G108: 0 | J108: =SUMIF($AD$4:$AD$59,$D108,$AE$4:$AE$59) -> 0 | K108: 0 | L108: 0 | M108: 0 | N108: 0 | O108: 0 | P108: 0 | Q108: 0 | R108: 0 | S108: 0 | T108: 0 | U108: 0 | V108: 0 | W108: 0 | X108: 0 | Y108: 0 | Z108: 0 | AA108: 0 | AB108: 0 | AC108: 0
D109: Francesco Cocco | E109: 0 | F109: 0 | G109: 0 | J109: =SUMIF($AD$4:$AD$59,$D109,$AE$4:$AE$59) -> 0 | K109: 0 | L109: 0 | M109: 0 | N109: 0 | O109: 0 | P109: 0 | Q109: 0 | R109: 0 | S109: 0 | T109: 0 | U109: 0 | V109: 0 | W109: 0 | X109: 0 | Y109: 0 | Z109: 0 | AA109: 0 | AB109: 0 | AC109: 0
D110: Frank Brandmeier | E110: 0 | F110: 0 | G110: 0 | J110: =SUMIF($AD$4:$AD$59,$D110,$AE$4:$AE$59) -> 0 | K110: 0 | L110: 0 | M110: 0 | N110: 0 | O110: 0 | P110: 0 | Q110: 0 | R110: 0 | S110: 0 | T110: 0 | U110: 0 | V110: 0 | W110: 0 | X110: 0 | Y110: 0 | Z110: 0 | AA110: 0 | AB110: 0 | AC110: 0
D111: Frank Hofmann | E111: 0 | F111: 0 | G111: 0 | J111: =SUMIF($AD$4:$AD$59,$D111,$AE$4:$AE$59) -> 0 | K111: 0 | L111: 0 | M111: 0 | N111: 0 | O111: 0 | P111: 0 | Q111: 0 | R111: 0 | S111: 0 | T111: 0 | U111: 0 | V111: 0 | W111: 0 | X111: 0 | Y111: 0 | Z111: 0 | AA111: 0 | AB111: 0 | AC111: 0
D112: Frank Hörnig | E112: 0 | F112: 0 | G112: 0 | J112: =SUMIF($AD$4:$AD$59,$D112,$AE$4:$AE$59) -> 0 | K112: 0 | L112: 0 | M112: 0 | N112: 0 | O112: 0 | P112: 0 | Q112: 0 | R112: 0 | S112: 0 | T112: 0 | U112: 0 | V112: 0 | W112: 0 | X112: 0 | Y112: 0 | Z112: 0 | AA112: 0 | AB112: 0 | AC112: 0
D113: Frank Jacob | E113: 0 | G113: 0 | J113: =SUMIF($AD$4:$AD$59,$D113,$AE$4:$AE$59) -> 0 | K113: 0 | L113: 0 | M113: 0 | N113: 0 | O113: 0 | P113: 0 | Q113: 0 | R113: 0 | S113: 0 | T113: 0 | U113: 0 | V113: 0 | W113: 0 | X113: 0 | Y113: 0 | Z113: 0 | AA113: 0 | AB113: 0 | AC113: 0
D114: Frank Müller | E114: 0 | F114: =E114-G114 -> 0 | G114: 0 | J114: =SUMIF($AD$4:$AD$59,$D114,$AE$4:$AE$59) -> 0 | K114: 0 | L114: 0 | M114: 0 | N114: 0 | O114: 0 | P114: 0 | Q114: 0 | R114: 0 | S114: 0 | T114: 0 | U114: 0 | V114: 0 | W114: 0 | X114: 0 | Y114: 0 | Z114: 0 | AA114: 0 | AB114: 0 | AC114: 0
C115: 63 | D115: Gernot Killig | E115: =J115+K115+L115+M115+N115+O115+P115+Q115+R115+S115+T115+U115+V115+W115+X115 -> 0 | G115: 0 | J115: =SUMIF($AD$4:$AD$59,$D115,$AE$4:$AE$59) -> 0 | K115: 0 | L115: 0 | M115: 0 | N115: 0 | O115: 0 | P115: 0 | Q115: 0 | R115: 0 | S115: 0 | T115: 0 | U115: 0 | V115: 0 | W115: 0 | X115: 0 | Y115: 0 | Z115: 0 | AA115: 0 | AB115: 0 | AC115: 0
C116: 66 | D116: Hagen Wagner | E116: =J116+K116+L116+M116+N116+O116+P116+Q116+R116+S116+T116+U116+V116+W116+X116 -> 0 | G116: 0 | J116: =SUMIF($AD$4:$AD$59,$D116,$AE$4:$AE$59) -> 0 | K116: 0 | L116: 0 | M116: 0 | N116: 0 | O116: 0 | P116: 0 | Q116: 0 | R116: 0 | S116: 0 | T116: 0 | U116: 0 | V116: 0 | W116: 0 | X116: 0 | Y116: 0 | Z116: 0 | AA116: 0 | AB116: 0 | AC116: 0
D117: Hannes Hermsdorf | E117: =J117+K117+L117+M117+N117+O117+P117+Q117+R117+S117+T117+U117+V117+W117+X117 -> 0 | G117: 0 | J117: =SUMIF($AD$4:$AD$59,$D117,$AE$4:$AE$59) -> 0 | K117: 0 | L117: 0 | M117: 0 | N117: 0 | O117: 0 | P117: 0 | Q117: 0 | R117: 0 | S117: 0 | T117: 0 | U117: 0 | V117: 0 | W117: 0 | X117: 0 | Y117: 0 | Z117: 0 | AA117: 0 | AB117: 0 | AC117: 0
D118: Heiko Funk | E118: =J118+K118+L118+M118+N118+O118+P118+Q118+R118+S118+T118+U118+V118+W118+X118+Y118+Z118 -> 0 | F118: =E118-G118 -> 0 | G118: 0 | J118: =SUMIF($AD$4:$AD$59,$D118,$AE$4:$AE$59) -> 0 | K118: 0 | L118: 0 | M118: 0 | N118: 0 | O118: 0 | P118: 0 | Q118: 0 | R118: 0 | S118: 0 | T118: 0 | U118: 0 | V118: 0 | W118: 0 | X118: 0 | Y118: 0 | Z118: 0 | AA118: 0 | AB118: 0 | AC118: 0
D119: Helmut Kuball | E119: 0 | F119: 0 | G119: 0 | J119: =SUMIF($AD$4:$AD$59,$D119,$AE$4:$AE$59) -> 0 | K119: 0 | L119: 0 | M119: 0 | N119: 0 | O119: 0 | P119: 0 | Q119: 0 | R119: 0 | S119: 0 | T119: 0 | U119: 0 | V119: 0 | W119: 0 | X119: 0 | Y119: 0 | Z119: 0 | AA119: 0 | AB119: 0 | AC119: 0
C120: 57 | D120: Hilmar Habrom | E120: 0 | F120: 0 | G120: 0 | J120: =SUMIF($AD$4:$AD$59,$D120,$AE$4:$AE$59) -> 0 | K120: 0 | L120: 0 | M120: 0 | N120: 0 | O120: 0 | P120: 0 | Q120: 0 | R120: 0 | S120: 0 | T120: 0 | U120: 0 | V120: 0 | W120: 0 | X120: 0 | Y120: 0 | Z120: 0 | AA120: 0 | AB120: 0 | AC120: 0
D121: Holger Seifert | E121: 0 | F121: 0 | G121: 0 | J121: =SUMIF($AD$4:$AD$59,$D121,$AE$4:$AE$59) -> 0 | K121: 0 | L121: 0 | M121: 0 | N121: 0 | O121: 0 | P121: 0 | Q121: 0 | R121: 0 | S121: 0 | T121: 0 | U121: 0 | V121: 0 | W121: 0 | X121: 0 | Y121: 0 | Z121: 0 | AA121: 0 | AB121: 0 | AC121: 0
D122: Imad Mohamad | E122: 0 | F122: 0 | G122: 0 | J122: =SUMIF($AD$4:$AD$59,$D122,$AE$4:$AE$59) -> 0 | K122: 0 | L122: 0 | M122: 0 | N122: 0 | O122: 0 | P122: 0 | Q122: 0 | R122: 0 | S122: 0 | T122: 0 | U122: 0 | V122: 0 | W122: 0 | X122: 0 | Y122: 0 | Z122: 0 | AA122: 0 | AB122: 0 | AC122: 0
D123: Irina Gorbataya | E123: 0 | F123: 0 | G123: 0 | J123: =SUMIF($AD$4:$AD$59,$D123,$AE$4:$AE$59) -> 0 | K123: 0 | L123: 0 | M123: 0 | N123: 0 | O123: 0 | P123: 0 | Q123: 0 | R123: 0 | S123: 0 | T123: 0 | U123: 0 | V123: 0 | W123: 0 | X123: 0 | Y123: 0 | Z123: 0 | AA123: 0 | AB123: 0 | AC123: 0
D124: Istvan Farkas | E124: 0 | G124: 0 | J124: =SUMIF($AD$4:$AD$59,$D124,$AE$4:$AE$59) -> 0 | K124: 0 | L124: 0 | M124: 0 | N124: 0 | O124: 0 | P124: 0 | Q124: 0 | R124: 0 | S124: 0 | T124: 0 | U124: 0 | V124: 0 | W124: 0 | X124: 0 | Y124: 0 | Z124: 0 | AA124: 0 | AB124: 0 | AC124: 0
D125: Jan Utikal | E125: =J125+K125+L125+M125+N125+O125+P125+Q125+R125+S125+T125+U125+V125+W125+X125 -> 0 | G125: 0 | J125: =SUMIF($AD$4:$AD$59,$D125,$AE$4:$AE$59) -> 0 | K125: 0 | L125: 0 | M125: 0 | N125: 0 | O125: =SUMIF($AN$4:$AN$43,$D125,$AO$4:$AO$43) -> 0 | P125: 0 | Q125: 0 | R125: 0 | S125: 0 | T125: 0 | U125: 0 | V125: 0 | W125: 0 | X125: 0 | Y125: 0 | Z125: 0 | AA125: 0 | AB125: 0 | AC125: 0
D126: Jens Künitz | E126: =J126+K126+L126+M126+N126+O126+P126+Q126+R126+S126+T126+U126+V126+W126+X126+Y126+Z126 -> 0 | F126: =E126-G126 -> 0 | G126: 0 | J126: =SUMIF($AD$4:$AD$59,$D126,$AE$4:$AE$59) -> 0 | K126: 0 | L126: 0 | M126: 0 | N126: 0 | O126: 0 | P126: 0 | Q126: 0 | R126: 0 | S126: 0 | T126: 0 | U126: 0 | V126: 0 | W126: 0 | X126: 0 | Y126: 0 | Z126: 0 | AA126: 0 | AB126: 0 | AC126: 0
D127: Jens Tzschirner | E127: =J127+K127+L127+M127+N127+O127+P127+Q127+R127+S127+T127+U127+V127+W127+X127+Y127+Z127 -> 0 | F127: =E127-G127 -> 0 | G127: 0 | J127: =SUMIF($AD$4:$AD$59,$D127,$AE$4:$AE$59) -> 0 | K127: 0 | L127: 0 | M127: 0 | N127: 0 | O127: 0 | P127: 0 | Q127: 0 | R127: 0 | S127: 0 | T127: 0 | U127: 0 | V127: 0 | W127: 0 | X127: 0 | Y127: 0 | Z127: 0 | AA127: 0 | AB127: 0 | AC127: 0
D128: Jonas Ziemer | E128: =J128+K128+L128+M128+N128+O128+P128+Q128+R128+S128+T128+U128+V128+W128+X128+Y128+Z128 -> 0 | G128: 0 | J128: =SUMIF($AD$4:$AD$59,$D128,$AE$4:$AE$59) -> 0 | K128: 0 | L128: 0 | M128: 0 | N128: 0 | O128: 0 | P128: 0 | Q128: 0 | R128: 0 | S128: 0 | T128: 0 | U128: 0 | V128: 0 | W128: 0 | X128: 0 | Y128: 0 | Z128: 0 | AA128: 0 | AB128: 0 | AC128: 0
D129: Jörg Bonitz | E129: =J129+K129+L129+M129+N129+O129+P129+Q129+R129+S129+T129+U129+V129+W129+X129+Y129+Z129 -> 0 | F129: =E129-G129 -> 0 | G129: 0 | J129: =SUMIF($AD$4:$AD$59,$D129,$AE$4:$AE$59) -> 0 | K129: 0 | L129: 0 | M129: 0 | N129: 0 | O129: 0 | P129: 0 | Q129: 0 | R129: 0 | S129: 0 | T129: 0 | U129: 0 | V129: 0 | W129: 0 | X129: 0 | Y129: 0 | Z129: 0 | AA129: 0 | AB129: 0 | AC129: 0
D130: Justin Eichhorn | E130: =J130+K130+L130+M130+N130+O130+P130+Q130+R130+S130+T130+U130+V130+W130+X130+Y130+Z130 -> 0 | G130: 0 | J130: =SUMIF($AD$4:$AD$59,$D130,$AE$4:$AE$59) -> 0 | K130: 0 | L130: 0 | M130: 0 | N130: 0 | O130: 0 | P130: 0 | Q130: 0 | R130: 0 | S130: 0 | T130: 0 | U130: 0 | V130: 0 | W130: 0 | X130: 0 | Y130: 0 | Z130: 0 | AA130: 0 | AB130: 0 | AC130: 0
D131: Justin Gruner | E131: =J131+K131+L131+M131+N131+O131+P131+Q131+R131+S131+T131+U131+V131+W131+X131 -> 0 | G131: =INDEX(J131:X131,MATCH(LARGE(J131:X131,COUNTIF(J131:X131,">="&0)),J131:X131,0)) -> 0 | J131: =SUMIF($AD$4:$AD$59,$D131,$AE$4:$AE$59) -> 0 | K131: =SUMIF($AF$4:$AF$43,$D131,$AG$4:$AG$43) -> 0 | L131: =SUMIF($AH$4:$AH$43,$D131,$AI$4:$AI$43) -> 0 | M131: =SUMIF($AJ$4:$AJ$43,$D131,$AK$4:$AK$43) -> 0 | N131: =SUMIF($AL$4:$AL$43,$D131,$AM$4:$AM$43) -> 0 | O131: 0 | P131: =SUMIF($AP$4:$AP$43,$D131,$AQ$4:$AQ$43) -> 0 | Q131: =SUMIF($AR$4:$AR$43,$D131,$AS$4:$AS$43) -> 0 | R131: =SUMIF(AT$4:AT$43,$D131,AU$4:AU$43) -> 0 | S131: =SUMIF(AV$4:AV$43,$D131,AW$4:AW$43) -> 0 | T131: =SUMIF(AX$4:AX$43,$D131,AY$4:AY$43) -> 0 | U131: =SUMIF(AZ$4:AZ$43,$D131,BA$4:BA$43) -> 0 | V131: =SUMIF(BB$4:BB$43,$D131,BC$4:BC$43) -> 0 | W131: 0 | X131: 0 | Y131: 0 | Z131: 0 | AA131: 0 | AB131: 0 | AC131: 0
C132: 64 | D132: Karsten Müller | E132: =J132+K132+L132+M132+N132+O132+P132+Q132+R132+S132+T132+U132+V132+W132+X132 -> 0 | G132: 0 | J132: =SUMIF($AD$4:$AD$59,$D132,$AE$4:$AE$59) -> 0 | K132: 0 | L132: 0 | M132: 0 | N132: 0 | O132: 0 | P132: 0 | Q132: 0 | R132: 0 | S132: 0 | T132: 0 | U132: 0 | V132: 0 | W132: =SUMIF(BD$4:BD$43,$D132,BE$4:BE$43) -> 0 | X132: =SUMIF(BF$4:BF$43,$D132,BG$4:BG$43) -> 0 | Y132: =SUMIF(BH$4:BH$43,$D132,BI$4:BI$43) -> 0 | Z132: =SUMIF(BJ$4:BJ$43,$D132,BK$4:BK$43) -> 0 | AA132: =SUMIF(BL$4:BL$43,$D132,BM$4:BM$43) -> 0 | AB132: =SUMIF(BN$4:BN$43,$D132,BO$4:BO$43) -> 0 | AC132: =SUMIF(BP$4:BP$43,$D132,BQ$4:BQ$43) -> 0
D133: Lubos Charvat | E133: =J133+K133+L133+M133+N133+O133+P133+Q133+R133+S133+T133+U133+V133+W133+X133+Y133+Z133 -> 0 | F133: =E133-G133 -> 0 | G133: 0 | J133: =SUMIF($AD$4:$AD$59,$D133,$AE$4:$AE$59) -> 0 | K133: 0 | L133: 0 | M133: 0 | N133: 0 | O133: 0 | P133: 0 | Q133: 0 | R133: 0 | S133: 0 | T133: 0 | U133: 0 | V133: 0 | W133: 0 | X133: 0 | Y133: 0 | Z133: 0 | AA133: 0 | AB133: 0 | AC133: 0
D134: Lukas Junker | E134: 0 | F134: =E134-G134 -> 0 | G134: 0 | J134: =SUMIF($AD$4:$AD$59,$D134,$AE$4:$AE$59) -> 0 | K134: 0 | L134: 0 | M134: 0 | N134: 0 | O134: 0 | P134: 0 | Q134: 0 | R134: 0 | S134: 0 | T134: 0 | U134: 0 | V134: 0 | W134: 0 | X134: 0 | Y134: 0 | Z134: 0 | AA134: 0 | AB134: 0 | AC134: 0
D135: Lukas Körnig | E135: 0 | G135: 0 | J135: =SUMIF($AD$4:$AD$59,$D135,$AE$4:$AE$59) -> 0 | K135: 0 | L135: 0 | M135: 0 | N135: 0 | O135: 0 | P135: 0 | Q135: 0 | R135: 0 | S135: 0 | T135: 0 | U135: 0 | V135: 0 | W135: 0 | X135: 0 | Y135: 0 | Z135: 0 | AA135: 0 | AB135: 0 | AC135: 0
D136: Marco Bertram | E136: 0 | F136: =E136-G136 -> 0 | G136: 0 | J136: =SUMIF($AD$4:$AD$59,$D136,$AE$4:$AE$59) -> 0 | K136: 0 | L136: 0 | M136: 0 | N136: 0 | O136: 0 | P136: 0 | Q136: 0 | R136: 0 | S136: 0 | T136: 0 | U136: 0 | V136: 0 | W136: 0 | X136: 0 | Y136: 0 | Z136: 0 | AA136: 0 | AB136: 0 | AC136: 0
D137: Marco Danisch | E137: 0 | F137: =E137-G137 -> 0 | G137: 0 | J137: =SUMIF($AD$4:$AD$59,$D137,$AE$4:$AE$59) -> 0 | K137: 0 | L137: 0 | M137: 0 | N137: 0 | O137: 0 | P137: 0 | Q137: 0 | R137: 0 | S137: 0 | T137: 0 | U137: 0 | V137: 0 | W137: 0 | X137: 0 | Y137: 0 | Z137: 0 | AA137: 0 | AB137: 0 | AC137: 0
D138: Marco Rost | E138: 0 | G138: 0 | J138: =SUMIF($AD$4:$AD$59,$D138,$AE$4:$AE$59) -> 0 | K138: 0 | L138: 0 | M138: 0 | N138: 0 | O138: 0 | P138: 0 | Q138: 0 | R138: 0 | S138: 0 | T138: 0 | U138: 0 | V138: 0 | W138: 0 | X138: 0 | Y138: 0 | Z138: 0 | AA138: 0 | AB138: 0 | AC138: 0
C139: 67 | D139: Mario Herberger | E139: =J139+K139+L139+M139+N139+O139+P139+Q139+R139+S139+T139+U139+V139+W139+X139 -> 0 | G139: 0 | J139: =SUMIF($AD$4:$AD$59,$D139,$AE$4:$AE$59) -> 0 | K139: 0 | L139: 0 | M139: 0 | N139: 0 | O139: 0 | P139: 0 | Q139: 0 | R139: 0 | S139: 0 | T139: 0 | U139: 0 | V139: 0 | W139: 0 | X139: 0 | Y139: 0 | Z139: 0 | AA139: 0 | AB139: 0 | AC139: 0
D140: Mario Ilgen | E140: =J140+K140+L140+M140+N140+O140+P140+Q140+R140+S140+T140+U140+V140+W140+X140+Y140+Z140 -> 0 | F140: =E140-G140 -> 0 | G140: 0 | J140: =SUMIF($AD$4:$AD$59,$D140,$AE$4:$AE$59) -> 0 | K140: 0 | L140: 0 | M140: 0 | N140: 0 | O140: 0 | P140: 0 | Q140: 0 | R140: 0 | S140: 0 | T140: 0 | U140: 0 | V140: 0 | W140: 0 | X140: 0 | Y140: 0 | Z140: 0 | AA140: 0 | AB140: 0 | AC140: 0
D141: Markus Elstermann | E141: 0 | G141: 0 | J141: =SUMIF($AD$4:$AD$59,$D141,$AE$4:$AE$59) -> 0 | K141: 0 | L141: 0 | M141: 0 | N141: 0 | O141: 0 | P141: 0 | Q141: 0 | R141: 0 | S141: 0 | T141: 0 | U141: 0 | V141: 0 | W141: 0 | X141: 0 | Y141: 0 | Z141: 0 | AA141: 0 | AB141: 0 | AC141: 0
D142: Matthias Eichel | E142: 0 | F142: =E142-G142 -> 0 | G142: 0 | J142: =SUMIF($AD$4:$AD$59,$D142,$AE$4:$AE$59) -> 0 | K142: 0 | L142: 0 | M142: 0 | N142: 0 | O142: 0 | P142: 0 | Q142: 0 | R142: 0 | S142: 0 | T142: 0 | U142: 0 | V142: 0 | W142: 0 | X142: 0 | Y142: 0 | Z142: 0 | AA142: 0 | AB142: 0 | AC142: 0
D143: Michael Haferung | E143: 0 | F143: =E143-G143 -> 0 | G143: 0 | J143: =SUMIF($AD$4:$AD$59,$D143,$AE$4:$AE$59) -> 0 | K143: 0 | L143: 0 | M143: 0 | N143: 0 | O143: 0 | P143: 0 | Q143: 0 | R143: 0 | S143: 0 | T143: 0 | U143: 0 | V143: 0 | W143: 0 | X143: 0 | Y143: 0 | Z143: 0 | AA143: 0 | AB143: 0 | AC143: 0
D144: Michael Richter | E144: 0 | F144: =E144-G144 -> 0 | G144: 0 | J144: =SUMIF($AD$4:$AD$59,$D144,$AE$4:$AE$59) -> 0 | K144: 0 | L144: 0 | M144: 0 | N144: 0 | O144: 0 | P144: 0 | Q144: 0 | R144: 0 | S144: 0 | T144: 0 | U144: 0 | V144: 0 | W144: 0 | X144: 0 | Y144: 0 | Z144: 0 | AA144: 0 | AB144: 0 | AC144: 0
D145: Michael Schnabel | E145: 0 | G145: 0 | J145: =SUMIF($AD$4:$AD$59,$D145,$AE$4:$AE$59) -> 0 | K145: 0 | L145: 0 | M145: 0 | N145: 0 | O145: 0 | P145: 0 | Q145: 0 | R145: 0 | S145: 0 | T145: 0 | U145: 0 | V145: 0 | W145: 0 | X145: 0 | Y145: 0 | Z145: 0 | AA145: 0 | AB145: 0 | AC145: 0
D146: Michael Simon | E146: 0 | F146: =E146-G146 -> 0 | G146: 0 | J146: =SUMIF($AD$4:$AD$59,$D146,$AE$4:$AE$59) -> 0 | K146: 0 | L146: 0 | M146: 0 | N146: 0 | O146: 0 | P146: 0 | Q146: 0 | R146: 0 | S146: 0 | T146: 0 | U146: 0 | V146: 0 | W146: 0 | X146: 0 | Y146: 0 | Z146: 0 | AA146: 0 | AB146: 0 | AC146: 0
D147: Mohanad Alobidi | E147: 0 | F147: =E147-G147 -> 0 | G147: 0 | J147: =SUMIF($AD$4:$AD$59,$D147,$AE$4:$AE$59) -> 0 | K147: 0 | L147: 0 | M147: 0 | N147: 0 | O147: 0 | P147: 0 | Q147: 0 | R147: 0 | S147: 0 | T147: 0 | U147: 0 | V147: 0 | W147: 0 | X147: 0 | Y147: 0 | Z147: 0 | AA147: 0 | AB147: 0 | AC147: 0
D148: Nicolas Schweigel | E148: =J148+K148+L148+M148+N148+O148+P148+Q148+R148+S148+T148+U148+V148+W148+X148 -> 0 | G148: 0 | J148: =SUMIF($AD$4:$AD$59,$D148,$AE$4:$AE$59) -> 0 | K148: 0 | L148: 0 | M148: 0 | N148: 0 | O148: 0 | P148: 0 | Q148: 0 | R148: 0 | S148: 0 | T148: 0 | U148: 0 | V148: 0 | W148: 0 | X148: 0 | Y148: 0 | Z148: 0 | AA148: 0 | AB148: 0 | AC148: 0
C149: 45 | D149: Oliver Witzik | E149: =J149+K149+L149+M149+N149+O149+P149+Q149+R149+S149+T149+U149+V149+W149+X149+Y149+Z149 -> 0 | F149: =E149-G149 -> 0 | G149: 0 | J149: =SUMIF($AD$4:$AD$59,$D149,$AE$4:$AE$59) -> 0 | K149: 0 | L149: 0 | M149: 0 | N149: 0 | O149: 0 | P149: 0 | Q149: 0 | R149: 0 | S149: 0 | T149: 0 | U149: 0 | V149: 0 | W149: 0 | X149: 0 | Y149: 0 | Z149: 0 | AA149: 0 | AB149: 0 | AC149: 0
D150: Örbi Ermdorfer | E150: 0 | F150: =E150-G150 -> 0 | G150: 0 | J150: =SUMIF($AD$4:$AD$59,$D150,$AE$4:$AE$59) -> 0 | K150: 0 | L150: 0 | M150: 0 | N150: 0 | O150: 0 | P150: 0 | Q150: 0 | R150: 0 | S150: 0 | T150: 0 | U150: 0 | V150: 0 | W150: 0 | X150: 0 | Y150: 0 | Z150: 0 | AA150: 0 | AB150: 0 | AC150: 0
D151: Patrick Schicker | E151: 0 | F151: =E151-G151 -> 0 | G151: 0 | J151: =SUMIF($AD$4:$AD$59,$D151,$AE$4:$AE$59) -> 0 | K151: 0 | L151: 0 | M151: 0 | N151: 0 | O151: 0 | P151: 0 | Q151: 0 | R151: 0 | S151: 0 | T151: 0 | U151: 0 | V151: 0 | W151: 0 | X151: 0 | Y151: 0 | Z151: 0 | AA151: 0 | AB151: 0 | AC151: 0
C152: 58 | D152: Paul N. Schmidt | E152: 0 | F152: =E152-G152 -> 0 | G152: 0 | J152: =SUMIF($AD$4:$AD$59,$D152,$AE$4:$AE$59) -> 0 | K152: 0 | L152: 0 | M152: 0 | N152: 0 | O152: 0 | P152: 0 | Q152: 0 | R152: 0 | S152: 0 | T152: 0 | U152: 0 | V152: 0 | W152: 0 | X152: 0 | Y152: 0 | Z152: 0 | AA152: 0 | AB152: 0 | AC152: 0
D153: Peter Kloppisch | E153: 0 | G153: 0 | J153: =SUMIF($AD$4:$AD$59,$D153,$AE$4:$AE$59) -> 0 | K153: 0 | L153: 0 | M153: 0 | N153: 0 | O153: 0 | P153: 0 | Q153: 0 | R153: 0 | S153: 0 | T153: 0 | U153: 0 | V153: 0 | W153: 0 | X153: 0 | Y153: 0 | Z153: 0 | AA153: 0 | AB153: 0 | AC153: 0
D154: Peter Stadelmann | E154: 0 | F154: =E154-G154 -> 0 | G154: 0 | J154: =SUMIF($AD$4:$AD$59,$D154,$AE$4:$AE$59) -> 0 | K154: 0 | L154: 0 | M154: 0 | N154: 0 | O154: 0 | P154: 0 | Q154: 0 | R154: 0 | S154: 0 | T154: 0 | U154: 0 | V154: 0 | W154: =SUMIF(BD$4:BD$43,$D154,BE$4:BE$43) -> 0 | X154: =SUMIF(BF$4:BF$43,$D154,BG$4:BG$43) -> 0 | Y154: 0 | Z154: 0 | AA154: 0 | AB154: 0 | AC154: 0
C155: 59 | D155: Philipp Vaupel | E155: =J155+K155+L155+M155+N155+O155+P155+Q155+R155+S155+T155+U155+V155+W155+X155 -> 0 | G155: 0 | J155: =SUMIF($AD$4:$AD$59,$D155,$AE$4:$AE$59) -> 0 | K155: 0 | L155: 0 | M155: 0 | N155: 0 | O155: 0 | P155: 0 | Q155: 0 | R155: 0 | S155: 0 | T155: 0 | U155: 0 | V155: 0 | W155: 0 | X155: 0 | Y155: 0 | Z155: 0 | AA155: 0 | AB155: 0 | AC155: 0
D156: Pragadeeshwaran Ratheesh | E156: =J156+K156+L156+M156+N156+O156+P156+Q156+R156+S156+T156+U156+V156+W156+X156+Y156+Z156 -> 0 | F156: =E156-G156 -> 0 | G156: 0 | J156: =SUMIF($AD$4:$AD$59,$D156,$AE$4:$AE$59) -> 0 | K156: 0 | L156: 0 | M156: 0 | N156: 0 | O156: 0 | P156: 0 | Q156: 0 | R156: 0 | S156: 0 | T156: 0 | U156: 0 | V156: 0 | W156: 0 | X156: 0
C157: 61 | D157: Raiko Förster | E157: =J157+K157+L157+M157+N157+O157+P157+Q157+R157+S157+T157+U157+V157+W157+X157+Y157+Z157 -> 0 | G157: 0 | J157: =SUMIF($AD$4:$AD$59,$D157,$AE$4:$AE$59) -> 0 | K157: 0 | L157: 0 | M157: 0 | N157: 0 | O157: 0 | P157: 0 | Q157: 0 | R157: 0 | S157: 0 | T157: 0 | U157: 0 | V157: 0 | W157: 0 | X157: 0
D158: Rainer Eberlein | E158: =J158+K158+L158+M158+N158+O158+P158+Q158+R158+S158+T158+U158+V158+W158+X158+Y158+Z158 -> 0 | G158: 0 | J158: =SUMIF($AD$4:$AD$59,$D158,$AE$4:$AE$59) -> 0 | K158: 0 | L158: 0 | M158: 0 | N158: 0 | O158: 0 | P158: 0 | Q158: 0 | R158: 0 | S158: 0 | T158: 0 | U158: 0 | V158: 0 | W158: 0 | X158: 0
C159: 69 | D159: Rainer Jahn | E159: =J159+K159+L159+M159+N159+O159+P159+Q159+R159+S159+T159+U159+V159+W159+X159 -> 0 | G159: 0 | J159: =SUMIF($AD$4:$AD$59,$D159,$AE$4:$AE$59) -> 0 | K159: 0 | L159: 0 | M159: 0 | N159: 0 | O159: 0 | P159: 0 | Q159: 0 | R159: 0 | S159: 0 | T159: 0 | U159: 0 | V159: 0 | W159: 0 | X159: 0
D160: Rainer Krämer | E160: =J160+K160+L160+M160+N160+O160+P160+Q160+R160+S160+T160+U160+V160+W160+X160+Y160+Z160 -> 0 | F160: =E160-G160 -> 0 | G160: 0 | J160: =SUMIF($AD$4:$AD$59,$D160,$AE$4:$AE$59) -> 0 | K160: 0 | L160: 0 | M160: 0 | N160: 0 | O160: 0 | P160: 0 | Q160: 0 | R160: 0 | S160: 0 | T160: 0 | U160: 0 | V160: 0 | W160: 0 | X160: 0
D161: Rainer Trupkovic | E161: 0 | F161: 0 | G161: 0 | J161: =SUMIF($AD$4:$AD$59,$D161,$AE$4:$AE$59) -> 0 | K161: 0 | L161: 0 | M161: 0 | N161: 0 | O161: 0 | P161: 0 | Q161: 0 | R161: 0 | S161: 0 | T161: 0 | U161: 0 | V161: 0 | W161: 0 | X161: 0
D162: Rene Reinhardt | E162: 0 | F162: 0 | G162: 0 | J162: =SUMIF($AD$4:$AD$59,$D162,$AE$4:$AE$59) -> 0 | K162: 0 | L162: 0 | M162: 0 | N162: 0 | O162: 0 | P162: 0 | Q162: 0 | R162: 0 | S162: 0 | T162: 0 | U162: 0 | V162: 0 | W162: 0 | X162: 0
C163: 40 | D163: Rene Scheurer | E163: 0 | F163: 0 | G163: =INDEX(J163:X163,MATCH(LARGE(J163:X163,COUNTIF(J163:X163,">="&0)),J163:X163,0)) -> 0 | J163: =SUMIF($AD$4:$AD$59,$D163,$AE$4:$AE$59) -> 0 | K163: =SUMIF($AF$4:$AF$43,$D163,$AG$4:$AG$43) -> 0 | L163: =SUMIF($AH$4:$AH$43,$D163,$AI$4:$AI$43) -> 0 | M163: =SUMIF($AJ$4:$AJ$43,$D163,$AK$4:$AK$43) -> 0 | N163: =SUMIF($AL$4:$AL$43,$D163,$AM$4:$AM$43) -> 0 | O163: 0 | P163: =SUMIF($AP$4:$AP$43,$D163,$AQ$4:$AQ$43) -> 0 | Q163: =SUMIF($AR$4:$AR$43,$D163,$AS$4:$AS$43) -> 0 | R163: =SUMIF(AT$4:AT$43,$D163,AU$4:AU$43) -> 0 | S163: =SUMIF(AV$4:AV$43,$D163,AW$4:AW$43) -> 0 | T163: =SUMIF(AX$4:AX$43,$D163,AY$4:AY$43) -> 0 | U163: =SUMIF(AZ$4:AZ$43,$D163,BA$4:BA$43) -> 0 | V163: =SUMIF(BB$4:BB$43,$D163,BC$4:BC$43) -> 0 | W163: =SUMIF(BD$4:BD$43,$D163,BE$4:BE$43) -> 0 | X163: =SUMIF(BF$4:BF$43,$D163,BG$4:BG$43) -> 0
D164: Rico Krumbiegel | E164: 0 | F164: 0 | G164: 0 | J164: =SUMIF($AD$4:$AD$59,$D164,$AE$4:$AE$59) -> 0 | K164: 0 | L164: 0 | M164: 0 | N164: 0 | O164: 0 | P164: 0 | Q164: 0 | R164: 0 | S164: 0 | T164: 0 | U164: 0 | V164: 0 | W164: 0 | X164: 0
D165: Robert Ochmann | E165: 0 | F165: 0 | G165: 0 | J165: =SUMIF($AD$4:$AD$59,$D165,$AE$4:$AE$59) -> 0 | K165: 0 | L165: 0 | M165: 0 | N165: 0 | O165: 0 | P165: 0 | Q165: 0 | R165: 0 | S165: 0 | T165: 0 | U165: 0 | V165: 0 | W165: 0 | X165: 0
C166: 37 | D166: Roger Frank | E166: =J166+K166+L166+M166+N166+O166+P166+Q166+R166+S166+T166+U166+V166+W166+X166 -> 0 | G166: 0 | J166: =SUMIF($AD$4:$AD$59,$D166,$AE$4:$AE$59) -> 0 | K166: 0 | L166: 0 | M166: 0 | N166: 0 | O166: 0 | P166: 0 | Q166: 0 | R166: 0 | S166: 0 | T166: 0 | U166: 0 | V166: 0 | W166: 0 | X166: 0
D167: Ronald Ratz | E167: =J167+K167+L167+M167+N167+O167+P167+Q167+R167+S167+T167+U167+V167+W167+X167+Y167+Z167 -> 0 | F167: =E167-G167 -> 0 | G167: 0 | J167: =SUMIF($AD$4:$AD$59,$D167,$AE$4:$AE$59) -> 0 | K167: 0 | L167: 0 | M167: 0 | N167: 0 | O167: 0 | P167: 0 | Q167: 0 | R167: 0 | S167: 0 | T167: 0 | U167: 0 | V167: 0 | W167: 0 | X167: 0
D168: Ronny Zimmermann | E168: =J168+K168+L168+M168+N168+O168+P168+Q168+R168+S168+T168+U168+V168+W168+X168+Y168+Z168 -> 0 | F168: =E168-G168 -> 0 | G168: 0 | J168: =SUMIF($AD$4:$AD$59,$D168,$AE$4:$AE$59) -> 0 | K168: 0 | L168: 0 | M168: 0 | N168: 0 | O168: 0 | P168: 0 | Q168: 0 | R168: 0 | S168: 0 | T168: 0 | U168: 0 | V168: 0 | W168: 0 | X168: 0
D169: Saman Jasemi | E169: =J169+K169+L169+M169+N169+O169+P169+Q169+R169+S169+T169+U169+V169+W169+X169 -> 0 | G169: 0 | J169: =SUMIF($AD$4:$AD$59,$D169,$AE$4:$AE$59) -> 0 | K169: 0 | L169: 0 | M169: 0 | N169: 0 | O169: 0 | P169: 0 | Q169: 0 | R169: 0 | S169: 0 | T169: 0 | U169: 0 | V169: 0 | W169: 0 | X169: 0
D170: Sebastian Födisch | E170: =J170+K170+L170+M170+N170+O170+P170+Q170+R170+S170+T170+U170+V170+W170+X170+Y170+Z170 -> 0 | G170: 0 | J170: =SUMIF($AD$4:$AD$59,$D170,$AE$4:$AE$59) -> 0 | K170: 0 | L170: 0 | M170: 0 | N170: 0 | O170: 0 | P170: 0 | Q170: 0 | R170: 0 | S170: 0 | T170: 0 | U170: 0 | V170: 0 | W170: 0 | X170: 0
C171: 68 | D171: Sebastian Rambow | E171: =J171+K171+L171+M171+N171+O171+P171+Q171+R171+S171+T171+U171+V171+W171+X171 -> 0 | G171: 0 | J171: =SUMIF($AD$4:$AD$59,$D171,$AE$4:$AE$59) -> 0 | K171: 0 | L171: 0 | M171: 0 | N171: 0 | O171: 0 | P171: 0 | Q171: 0 | R171: 0 | S171: 0 | T171: 0 | U171: 0 | V171: 0 | W171: 0 | X171: 0
C172: 60 | D172: Sebastian Reinel | E172: =J172+K172+L172+M172+N172+O172+P172+Q172+R172+S172+T172+U172+V172+W172+X172 -> 0 | G172: 0 | J172: =SUMIF($AD$4:$AD$59,$D172,$AE$4:$AE$59) -> 0 | K172: 0 | L172: 0 | M172: 0 | N172: 0 | O172: 0 | P172: 0 | Q172: 0 | R172: 0 | S172: 0 | T172: 0 | U172: 0 | V172: 0 | W172: 0 | X172: 0
D173: Shuo Yang | E173: =J173+K173+L173+M173+N173+O173+P173+Q173+R173+S173+T173+U173+V173+W173+X173+Y173+Z173 -> 0 | F173: =E173-G173 -> 0 | G173: 0 | J173: =SUMIF($AD$4:$AD$59,$D173,$AE$4:$AE$59) -> 0 | K173: 0 | L173: 0 | M173: 0 | N173: 0 | O173: 0 | P173: 0 | Q173: 0 | R173: 0 | S173: 0 | T173: 0 | U173: 0 | V173: 0 | W173: 0 | X173: 0
D174: Slava Nikiforov | E174: =J174+K174+L174+M174+N174+O174+P174+Q174+R174+S174+T174+U174+V174+W174+X174+Y174+Z174 -> 0 | F174: =E174-G174 -> 0 | G174: 0 | J174: =SUMIF($AD$4:$AD$59,$D174,$AE$4:$AE$59) -> 0 | K174: 0 | L174: 0 | M174: 0 | N174: 0 | O174: 0 | P174: 0 | Q174: 0 | R174: 0 | S174: 0 | T174: 0 | U174: 0 | V174: 0 | W174: 0 | X174: 0
D175: Stefan Meußler | E175: =J175+K175+L175+M175+N175+O175+P175+Q175+R175+S175+T175+U175+V175+W175+X175+Y175+Z175 -> 0 | F175: =E175-G175 -> 0 | G175: 0 | J175: =SUMIF($AD$4:$AD$59,$D175,$AE$4:$AE$59) -> 0 | K175: 0 | L175: 0 | M175: 0 | N175: 0 | O175: 0 | P175: 0 | Q175: 0 | R175: 0 | S175: 0 | T175: 0 | U175: 0 | V175: 0 | W175: 0 | X175: 0
D176: Steffen Eilenstein | E176: =J176+K176+L176+M176+N176+O176+P176+Q176+R176+S176+T176+U176+V176+W176+X176+Y176+Z176 -> 0 | F176: =E176-G176 -> 0 | G176: 0 | J176: =SUMIF($AD$4:$AD$59,$D176,$AE$4:$AE$59) -> 0 | K176: 0 | L176: 0 | M176: 0 | N176: 0 | O176: 0 | P176: 0 | Q176: 0 | R176: 0 | S176: 0 | T176: 0 | U176: 0 | V176: 0 | W176: 0 | X176: 0
D177: Steffen Meußler | E177: =J177+K177+L177+M177+N177+O177+P177+Q177+R177+S177+T177+U177+V177+W177+X177+Y177+Z177 -> 0 | F177: =E177-G177 -> 0 | G177: 0 | J177: =SUMIF($AD$4:$AD$59,$D177,$AE$4:$AE$59) -> 0 | K177: 0 | L177: 0 | M177: 0 | N177: 0 | O177: 0 | P177: 0 | Q177: 0 | R177: 0 | S177: 0 | T177: 0 | U177: 0 | V177: 0 | W177: 0 | X177: 0
C178: 29 | D178: Stephan Kallies | E178: =J178+K178+L178+M178+N178+O178+P178+Q178+R178+S178+T178+U178+V178+W178+X178 -> 0 | G178: 0 | J178: =SUMIF($AD$4:$AD$59,$D178,$AE$4:$AE$59) -> 0 | K178: 0 | L178: 0 | M178: 0 | N178: 0 | O178: 0 | P178: 0 | Q178: 0 | R178: 0 | S178: 0 | T178: 0 | U178: 0 | V178: 0 | W178: 0 | X178: 0
C179: 36 | D179: Stev Karries | E179: =J179+K179+L179+M179+N179+O179+P179+Q179+R179+S179+T179+U179+V179+W179+X179 -> 0 | G179: 0 | J179: =SUMIF($AD$4:$AD$59,$D179,$AE$4:$AE$59) -> 0 | K179: 0 | L179: 0 | M179: 0 | N179: 0 | O179: 0 | P179: 0 | Q179: 0 | R179: 0 | S179: 0 | T179: 0 | U179: 0 | V179: 0 | W179: 0 | X179: 0
D180: Sven Isler | E180: =J180+K180+L180+M180+N180+O180+P180+Q180+R180+S180+T180+U180+V180+W180+X180 -> 0 | G180: 0 | J180: =SUMIF($AD$4:$AD$59,$D180,$AE$4:$AE$59) -> 0 | K180: 0 | L180: 0 | M180: 0 | N180: 0 | O180: 0 | P180: 0 | Q180: 0 | R180: 0 | S180: 0 | T180: 0 | U180: 0 | V180: 0 | W180: 0 | X180: 0
C181: 27 | D181: Sven Ohlenroth | E181: =J181+K181+L181+M181+N181+O181+P181+Q181+R181+S181+T181+U181+V181+W181+X181+Y181+Z181 -> 0 | F181: =E181-G181 -> 0 | G181: 0 | J181: =SUMIF($AD$4:$AD$59,$D181,$AE$4:$AE$59) -> 0 | K181: 0 | L181: 0 | M181: 0 | N181: 0 | O181: 0 | P181: 0 | Q181: 0 | R181: 0 | S181: 0 | T181: 0 | U181: 0 | V181: 0 | W181: 0 | X181: 0
D182: Sylvio Fischer | E182: 0 | F182: =E182-G182 -> 0 | G182: 0 | J182: =SUMIF($AD$4:$AD$59,$D182,$AE$4:$AE$59) -> 0 | K182: 0 | L182: 0 | M182: 0 | N182: 0 | O182: 0 | P182: 0 | Q182: 0 | R182: 0 | S182: 0 | T182: 0 | U182: 0 | V182: 0 | W182: 0 | X182: 0
D183: Tanja Ender | E183: 0 | G183: 0 | J183: =SUMIF($AD$4:$AD$59,$D183,$AE$4:$AE$59) -> 0 | K183: 0 | L183: 0 | M183: 0 | N183: 0 | O183: 0 | P183: 0 | Q183: 0 | R183: 0 | S183: 0 | T183: 0 | U183: 0 | V183: 0 | W183: 0 | X183: 0
D184: Thimo Troks | E184: 0 | F184: =E184-G184 -> 0 | G184: 0 | J184: =SUMIF($AD$4:$AD$59,$D184,$AE$4:$AE$59) -> 0 | K184: 0 | L184: 0 | M184: 0 | N184: 0 | O184: 0 | P184: 0 | Q184: 0 | R184: 0 | S184: 0 | T184: 0 | U184: 0 | V184: 0 | W184: 0 | X184: 0
D185: Thomas Blang | E185: 0 | G185: 0 | J185: =SUMIF($AD$4:$AD$59,$D185,$AE$4:$AE$59) -> 0 | K185: 0 | L185: 0 | M185: 0 | N185: 0 | O185: 0 | P185: 0 | Q185: 0 | R185: 0 | S185: 0 | T185: 0 | U185: 0 | V185: 0 | W185: 0 | X185: 0
D186: Thomas Brünner | E186: 0 | F186: =E186-G186 -> 0 | G186: 0 | J186: =SUMIF($AD$4:$AD$59,$D186,$AE$4:$AE$59) -> 0 | K186: 0 | L186: 0 | M186: 0 | N186: 0 | O186: 0 | P186: 0 | Q186: 0 | R186: 0 | S186: 0 | T186: 0 | U186: 0 | V186: 0 | W186: 0 | X186: 0
D187: Thomas Garbe | E187: 0 | F187: 0 | G187: 0 | J187: =SUMIF($AD$4:$AD$59,$D187,$AE$4:$AE$59) -> 0 | K187: 0 | L187: 0 | M187: 0 | N187: 0 | O187: 0 | P187: 0 | Q187: 0 | R187: 0 | S187: 0 | T187: 0 | U187: 0 | V187: 0 | W187: 0 | X187: 0
D188: Thomas Kämpfer | E188: 0 | F188: 0 | G188: 0 | J188: =SUMIF($AD$4:$AD$59,$D188,$AE$4:$AE$59) -> 0 | K188: 0 | L188: 0 | M188: 0 | N188: 0 | O188: 0 | P188: 0 | Q188: 0 | R188: 0 | S188: 0 | T188: 0 | U188: 0 | V188: 0 | W188: 0 | X188: 0
D189: Thomas Kraege | E189: 0 | F189: 0 | G189: 0 | J189: =SUMIF($AD$4:$AD$59,$D189,$AE$4:$AE$59) -> 0 | K189: 0 | L189: 0 | M189: 0 | N189: 0 | O189: =SUMIF($AN$4:$AN$43,$D189,$AO$4:$AO$43) -> 0 | P189: 0 | Q189: 0 | R189: 0 | S189: 0 | T189: 0 | U189: 0 | V189: 0 | W189: 0 | X189: 0
C190: 54 | D190: Thomas Krause | E190: 0 | F190: 0 | G190: 0 | J190: =SUMIF($AD$4:$AD$59,$D190,$AE$4:$AE$59) -> 0 | K190: 0 | L190: 0 | M190: 0 | N190: 0 | O190: 0 | P190: 0 | Q190: 0 | R190: 0 | S190: 0 | T190: 0 | U190: 0 | V190: 0 | W190: 0 | X190: 0
D191: Thomas Matka | E191: 0 | F191: 0 | G191: 0 | J191: =SUMIF($AD$4:$AD$59,$D191,$AE$4:$AE$59) -> 0 | K191: 0 | L191: 0 | M191: 0 | N191: 0 | O191: 0 | P191: 0 | Q191: 0 | R191: 0 | S191: 0 | T191: 0 | U191: 0 | V191: 0 | W191: 0 | X191: 0
C192: 38 | D192: Thomas Metzler | E192: 0 | G192: 0 | J192: =SUMIF($AD$4:$AD$59,$D192,$AE$4:$AE$59) -> 0 | K192: 0 | L192: 0 | M192: 0 | N192: 0 | O192: 0 | P192: 0 | Q192: 0 | R192: 0 | S192: 0 | T192: 0 | U192: 0 | V192: 0 | W192: 0 | X192: 0
D193: Thomas Nierobisch | E193: 0 | G193: 0 | J193: =SUMIF($AD$4:$AD$59,$D193,$AE$4:$AE$59) -> 0 | K193: 0 | L193: 0 | M193: 0 | N193: 0 | O193: 0 | P193: 0 | Q193: 0 | R193: 0 | S193: 0 | T193: 0 | U193: 0 | V193: 0 | W193: 0 | X193: 0
D194: Thomas Salomon | E194: =J194+K194+L194+M194+N194+O194+P194+Q194+R194+S194+T194+U194+V194+W194+X194 -> 0 | G194: 0 | J194: =SUMIF($AD$4:$AD$59,$D194,$AE$4:$AE$59) -> 0 | K194: 0 | L194: 0 | M194: 0 | N194: 0 | O194: 0 | P194: 0 | Q194: 0 | R194: 0 | S194: 0 | T194: 0 | U194: 0 | V194: 0 | W194: 0 | X194: 0
D195: Thomas Schnabl | E195: =J195+K195+L195+M195+N195+O195+P195+Q195+R195+S195+T195+U195+V195+W195+X195+Y195+Z195 -> 0 | F195: =E195-G195 -> 0 | G195: =INDEX(J195:X195,MATCH(LARGE(J195:X195,COUNTIF(J195:X195,">="&0)),J195:X195,0)) -> 0 | J195: =SUMIF($AD$4:$AD$59,$D195,$AE$4:$AE$59) -> 0 | K195: =SUMIF($AF$4:$AF$43,$D195,$AG$4:$AG$43) -> 0 | L195: =SUMIF($AH$4:$AH$43,$D195,$AI$4:$AI$43) -> 0 | M195: =SUMIF($AJ$4:$AJ$43,$D195,$AK$4:$AK$43) -> 0 | N195: =SUMIF($AL$4:$AL$43,$D195,$AM$4:$AM$43) -> 0 | O195: 0 | P195: =SUMIF($AP$4:$AP$43,$D195,$AQ$4:$AQ$43) -> 0 | Q195: =SUMIF($AR$4:$AR$43,$D195,$AS$4:$AS$43) -> 0 | R195: =SUMIF(AT$4:AT$43,$D195,AU$4:AU$43) -> 0 | S195: =SUMIF(AV$4:AV$43,$D195,AW$4:AW$43) -> 0 | T195: =SUMIF(AX$4:AX$43,$D195,AY$4:AY$43) -> 0 | U195: =SUMIF(AZ$4:AZ$43,$D195,BA$4:BA$43) -> 0 | V195: =SUMIF(BB$4:BB$43,$D195,BC$4:BC$43) -> 0 | W195: =SUMIF(BD$4:BD$43,$D195,BE$4:BE$43) -> 0 | X195: =SUMIF(BF$4:BF$43,$D195,BG$4:BG$43) -> 0
D196: Till Fritzsche | E196: =J196+K196+L196+M196+N196+O196+P196+Q196+R196+S196+T196+U196+V196+W196+X196+Y196+Z196 -> 0 | F196: =E196-G196 -> 0 | G196: 0 | J196: =SUMIF($AD$4:$AD$59,$D196,$AE$4:$AE$59) -> 0 | K196: 0 | L196: 0 | M196: 0 | N196: 0 | O196: 0 | P196: 0 | Q196: 0 | R196: 0 | S196: 0 | T196: 0 | U196: 0 | V196: 0 | W196: 0 | X196: 0
D197: Tino Wendelmuth | E197: =J197+K197+L197+M197+N197+O197+P197+Q197+R197+S197+T197+U197+V197+W197+X197+Y197+Z197 -> 0 | G197: 0 | J197: =SUMIF($AD$4:$AD$59,$D197,$AE$4:$AE$59) -> 0 | K197: 0 | L197: 0 | M197: 0 | N197: 0 | O197: 0 | P197: 0 | Q197: 0 | R197: 0 | S197: 0 | T197: 0 | U197: 0 | V197: 0 | W197: 0 | X197: 0
C198: 65 | D198: Tobias Hätty | E198: =J198+K198+L198+M198+N198+O198+P198+Q198+R198+S198+T198+U198+V198+W198+X198 -> 0 | G198: 0 | J198: =SUMIF($AD$4:$AD$59,$D198,$AE$4:$AE$59) -> 0 | K198: 0 | L198: 0 | M198: 0 | N198: 0 | O198: 0 | P198: 0 | Q198: 0 | R198: 0 | S198: 0 | T198: 0 | U198: 0 | V198: 0 | W198: 0 | X198: 0
D199: Ulrike Wilfer | E199: =J199+K199+L199+M199+N199+O199+P199+Q199+R199+S199+T199+U199+V199+W199+X199+Y199+Z199 -> 0 | F199: =E199-G199 -> 0 | G199: 0 | J199: =SUMIF($AD$4:$AD$59,$D199,$AE$4:$AE$59) -> 0 | K199: 0 | L199: 0 | M199: 0 | N199: 0 | O199: 0 | P199: 0 | Q199: 0 | R199: 0 | S199: 0 | T199: 0 | U199: 0 | V199: 0 | W199: 0 | X199: 0
D200: Wei Chen | E200: =J200+K200+L200+M200+N200+O200+P200+Q200+R200+S200+T200+U200+V200+W200+X200+Y200+Z200 -> 0 | G200: 0 | J200: =SUMIF($AD$4:$AD$59,$D200,$AE$4:$AE$59) -> 0 | K200: 0 | L200: 0 | M200: 0 | N200: 0 | O200: 0 | P200: 0 | Q200: 0 | R200: 0 | S200: 0 | T200: 0 | U200: 0 | V200: 0 | W200: 0 | X200: 0
... 7 more rows

Sheet Tabelle1
B2: Stachly Marec | C2: =MID(B2,FIND(" ",B2)+1,LEN(B2))& "" & LEFT(B2,FIND(" ",B2)) -> Marec Stachly | D2: =C2 -> Marec Stachly
B3: Khalid Umair | C3: =MID(B3,FIND(" ",B3)+1,LEN(B3))& "" & LEFT(B3,FIND(" ",B3)) -> UmairKhalid | D3: =C3 -> UmairKhalid
B4: Fandrei Joel | C4: Joel Fandrei | D4: Joel Fandrei
B5: Müller Marcus | C5: Marcus Müller | D5: Marcus Müller
B6: Fandrei Andreas | C6: Andreas Fandrei | D6: Andreas Fandrei
B7: Rejke Ronny | C7: Ronny Rejke | D7: Ronny Rejke
B8: Weber Marco | C8: Marco Weber | D8: Marco Weber
B9: Muhammad Umer | C9: Umer Muhammad | D9: Umer Muhammad
B10: Ahmed Roy Rameez | C10: Roy RameezAhmed | D10: Roy RameezAhmed
B11: Faarooq Rayumer | C11: RayumerFaarooq | D11: RayumerFaarooq
B12: Delling Tino | C12: Tino Delling | D12: Tino Delling
B13: Jeroch Paul | C13: Paul Jeroch | D13: Paul Jeroch
B14: Ouhsain Oussama | C14: OussamaOuhsain | D14: OussamaOuhsain
B15: Suttner Magnus | C15: Magnus Suttner | D15: Magnus Suttner
B16: Elham Faiz | C16: Faiz Elham | D16: Faiz Elham
B17: Straßburger Marko | C17: Marko Straßburger | D17: Marko Straßburger
B18: Brachmanski Dave | C18: Dave Brachmanski | D18: Dave Brachmanski
B19: Löffel Ulrich | C19: Ulrich Löffel | D19: Ulrich Löffel
B20: Grüner Ann-Cathrin | C20: Ann-Cathrin Grüner | D20: Ann-Cathrin Grüner
B21: Schranz Johannes | C21: Johannes Schranz | D21: Johannes Schranz
B22: Thomas Moritz | C22: Moritz Thomas | D22: Moritz Thomas
B23: Urban Adam | C23: AdamUrban | D23: AdamUrban
